OrganisationNameLabel,OrganisationURI,EffectiveDate,Directorate/ServiceWhereExpenditureIncurred,ServiceCategoryLabel,ServiceCategoryURI,Supplier,SupplierRegisteredCompany Number,PaymentDate,TransactionNumber,NetAmount,IrrecoverableVAT,PurposeOfSpend,ProcurementClassification:ProclassLabel,ProcrementClassification:ProClassCode
South Lakeland District Council,http://opendatacommunities.org/id/district-council/south-lakeland,30/04/2015,Lake Wardens,Cultural Environmental Regulatory & Planning Services,http://opendatacommunities.org/def/concept/finance/sercop/objective/104,CUMBRIA WASTE RECYCLING LTD,3162439,42121,47250,119.1,0,Monthly Emptying of Refuse Wheelie Bins,Environmental Services,180000
South Lakeland District Council,http://opendatacommunities.org/id/district-council/south-lakeland,30/04/2015,Electoral Services,Central Services,http://opendatacommunities.org/def/concept/finance/sercop/objective/102,HALAROSE LIMITED,1362834,42090,47534,7389.42,0,Annual Support & Maintenance for AVant,Information Communication Technology,270000
South Lakeland District Council,http://opendatacommunities.org/id/district-council/south-lakeland,30/04/2015,Revenues and Benefits,Central Services,http://opendatacommunities.org/def/concept/finance/sercop/objective/102,EXAPRINT,8032272,42102,47611,2593.25,0,Quotation Reference EXA0119,Information Communication Technology,270000
South Lakeland District Council,http://opendatacommunities.org/id/district-council/south-lakeland,30/04/2015,Business Support Community Services,Cultural Environmental Regulatory & Planning Services,http://opendatacommunities.org/def/concept/finance/sercop/objective/104,ARCO LIMITED,133804,42107,47654,116.92,0,Boxes of Disposables Gloves - Touch n,Environmental Services,180000
South Lakeland District Council,http://opendatacommunities.org/id/district-council/south-lakeland,30/04/2015,Business Support Community Services,Internal Trading Accounts,,RIBBLESDALE AUTO ELECTRICS 1992 LTD,2732686,42123,48037,79.2,0,Batteries,Vehicle Management,380000
South Lakeland District Council,http://opendatacommunities.org/id/district-council/south-lakeland,30/04/2015,Human Resources,Central Services,http://opendatacommunities.org/def/concept/finance/sercop/objective/102,OH Acquisitions Ltd,7365943,42109,48041,720,0,GP report recharge,Healthcare,310000
South Lakeland District Council,http://opendatacommunities.org/id/district-council/south-lakeland,30/04/2015,Human Resources,Central Services,http://opendatacommunities.org/def/concept/finance/sercop/objective/102,IOSH SERVICES LTD,1816826,42107,48089,130,0,Course ref no. MS3.1 PACK/190387,Education,170000
South Lakeland District Council,http://opendatacommunities.org/id/district-council/south-lakeland,30/04/2015,Social Enterprise Admin,Highways & Transport Services,http://opendatacommunities.org/def/concept/finance/sercop/objective/107,CUMBRIA WASTE RECYCLING LTD,3162439,42102,48158,45.24,0,Westmorland Multi Storey 660 ltr Wheelie,Environmental Services,180000
South Lakeland District Council,http://opendatacommunities.org/id/district-council/south-lakeland,30/04/2015,Business Support Community Services,Internal Trading Accounts,,Harry Park Tyres Ltd,8131208,42102,48257,98.4,0,Tyres,Vehicle Management,380000
South Lakeland District Council,http://opendatacommunities.org/id/district-council/south-lakeland,30/04/2015,Social Enterprise Admin,Cultural Environmental Regulatory & Planning Services,http://opendatacommunities.org/def/concept/finance/sercop/objective/104,NORTHGATE VEHICLE HIRE LTD,1434157,42107,48288,14.4,0,JC AND BF  TRAVEL,Education,170000
South Lakeland District Council,http://opendatacommunities.org/id/district-council/south-lakeland,30/04/2015,Social Enterprise Admin,Cultural Environmental Regulatory & Planning Services,http://opendatacommunities.org/def/concept/finance/sercop/objective/104,J A JONES & SONS (CHURCHTOWN) LTD,1697442,42107,48301,895.3,0,5 x Pyrus calleryana Chanticleer 12-14,Environmental Services,180000
South Lakeland District Council,http://opendatacommunities.org/id/district-council/south-lakeland,30/04/2015,Financial Services,Central Services,http://opendatacommunities.org/def/concept/finance/sercop/objective/102,Capita Secure Information Solutions Ltd,1593831,42102,48354,1290,0,Script conversion support,Financial Services,200000
South Lakeland District Council,http://opendatacommunities.org/id/district-council/south-lakeland,30/04/2015,Development Management,Cultural Environmental Regulatory & Planning Services,http://opendatacommunities.org/def/concept/finance/sercop/objective/104,SETON,4065947,42102,48355,10.46,0,2 pairs Size 11  Style No. 8621601,"Works - Construction, Repair & Maintenance",390000
South Lakeland District Council,http://opendatacommunities.org/id/district-council/south-lakeland,30/04/2015,Development Management,Cultural Environmental Regulatory & Planning Services,http://opendatacommunities.org/def/concept/finance/sercop/objective/104,SETON,4065947,42109,48356,3.49,0,2 pairs Size 11  Style No. 8621601,"Works - Construction, Repair & Maintenance",390000
South Lakeland District Council,http://opendatacommunities.org/id/district-council/south-lakeland,30/04/2015,Development Management,Cultural Environmental Regulatory & Planning Services,http://opendatacommunities.org/def/concept/finance/sercop/objective/104,SETON,4065947,42102,48357,43.9,0,1 x pair Style No. PPE1084  Warmlined,"Works - Construction, Repair & Maintenance",390000
South Lakeland District Council,http://opendatacommunities.org/id/district-council/south-lakeland,30/04/2015,Human Resources,Central Services,http://opendatacommunities.org/def/concept/finance/sercop/objective/102,IOSH SERVICES LTD,1816826,42107,48364,190,0,Course ref no. WS3.2 PACK/192464,Education,170000
South Lakeland District Council,http://opendatacommunities.org/id/district-council/south-lakeland,30/04/2015,Social Enterprise Admin,Cultural Environmental Regulatory & Planning Services,http://opendatacommunities.org/def/concept/finance/sercop/objective/104,Cleartrack (EvL) Ltd,3881690,42107,48369,75,0,Castle Rise (Stop/Go Boards required),Environmental Services,180000
South Lakeland District Council,http://opendatacommunities.org/id/district-council/south-lakeland,30/04/2015,Social Enterprise Admin,Cultural Environmental Regulatory & Planning Services,http://opendatacommunities.org/def/concept/finance/sercop/objective/104,Cleartrack (EvL) Ltd,3881690,42107,48373,800,0,Fell Horse Chestnut at Queens Park,Environmental Services,180000
South Lakeland District Council,http://opendatacommunities.org/id/district-council/south-lakeland,30/04/2015,Social Enterprise Admin,Cultural Environmental Regulatory & Planning Services,http://opendatacommunities.org/def/concept/finance/sercop/objective/104,Cleartrack (EvL) Ltd,3881690,42107,48374,900,0,Works as discussed at Ferry Nab /,Environmental Services,180000
South Lakeland District Council,http://opendatacommunities.org/id/district-council/south-lakeland,30/04/2015,Social Enterprise Admin,Cultural Environmental Regulatory & Planning Services,http://opendatacommunities.org/def/concept/finance/sercop/objective/104,Cleartrack (EvL) Ltd,3881690,42107,48375,600,0,Works as discussed at Briarwood Kendal,Environmental Services,180000
South Lakeland District Council,http://opendatacommunities.org/id/district-council/south-lakeland,30/04/2015,Social Enterprise Admin,Cultural Environmental Regulatory & Planning Services,http://opendatacommunities.org/def/concept/finance/sercop/objective/104,Cleartrack (EvL) Ltd,3881690,42107,48376,400,0,Fell Rowan to rear of Play area Lund,Environmental Services,180000
South Lakeland District Council,http://opendatacommunities.org/id/district-council/south-lakeland,30/04/2015,Revenues and Benefits,Central Services,http://opendatacommunities.org/def/concept/finance/sercop/objective/102,TEAM NETSOL LIMITED,3697370,42096,48384,9143,0,"Becs claims support, maintenance &",Information Communication Technology,270000
South Lakeland District Council,http://opendatacommunities.org/id/district-council/south-lakeland,30/04/2015,Development Strategy,Cultural Environmental Regulatory & Planning Services,http://opendatacommunities.org/def/concept/finance/sercop/objective/104,THE PLANNING INSPECTORATE,,42107,48388,19795.98,0,CIL examination and hearings,Consultancy,150000
South Lakeland District Council,http://opendatacommunities.org/id/district-council/south-lakeland,30/04/2015,Business Support Community Services,Internal Trading Accounts,,GARWOOD EUROPE LTD,4333504,42102,48400,222.48,0,Filters (26700),Vehicle Management,380000
South Lakeland District Council,http://opendatacommunities.org/id/district-council/south-lakeland,30/04/2015,Human Resources,Central Services,http://opendatacommunities.org/def/concept/finance/sercop/objective/102,Omniplex Ltd,,42107,48406,950,0,Articulate studio 13,Education,170000
South Lakeland District Council,http://opendatacommunities.org/id/district-council/south-lakeland,30/04/2015,Human Resources,Central Services,http://opendatacommunities.org/def/concept/finance/sercop/objective/102,Omniplex Ltd,,42107,48407,510,0,Articulate studio 13,Education,170000
South Lakeland District Council,http://opendatacommunities.org/id/district-council/south-lakeland,30/04/2015,Democratic Services,SLDC as Agent,,CASTLERIGG CONSULTING,6747285,42102,48418,9700,0,Transformation challenge project,Consultancy,150000
South Lakeland District Council,http://opendatacommunities.org/id/district-council/south-lakeland,30/04/2015,Business Support Community Services,Cultural Environmental Regulatory & Planning Services,http://opendatacommunities.org/def/concept/finance/sercop/objective/104,MILNTHORPE KENNELS & CATTERY,8932302,42102,48419,2382.33,0,Stray dog kennelling fees April 20014 -,Environmental Services,180000
South Lakeland District Council,http://opendatacommunities.org/id/district-council/south-lakeland,30/04/2015,Business Support Community Services,Cultural Environmental Regulatory & Planning Services,http://opendatacommunities.org/def/concept/finance/sercop/objective/104,CINNAMON CREATIVE EVENTS,,42102,48420,5000,0,Funding support for Kendal Festival of,Arts & Leisure Services,290000
South Lakeland District Council,http://opendatacommunities.org/id/district-council/south-lakeland,30/04/2015,Policy & Partnerships,Cultural Environmental Regulatory & Planning Services,http://opendatacommunities.org/def/concept/finance/sercop/objective/104,GRIZEDALE ARTS,3776969,42102,48421,10000,0,Year 2 grants,Financial Services,200000
South Lakeland District Council,http://opendatacommunities.org/id/district-council/south-lakeland,30/04/2015,Business Support Community Services,Internal Trading Accounts,,EK MOTOR FACTORS LTD,838524,42102,48422,6.9,0,Oil filters,Vehicle Management,380000
South Lakeland District Council,http://opendatacommunities.org/id/district-council/south-lakeland,30/04/2015,Business Support Community Services,Internal Trading Accounts,,EK MOTOR FACTORS LTD,838524,42102,48423,81.9,0,Oil filters,Vehicle Management,380000
South Lakeland District Council,http://opendatacommunities.org/id/district-council/south-lakeland,30/04/2015,Business Support Community Services,Internal Trading Accounts,,RIBBLESDALE AUTO ELECTRICS 1992 LTD,2732686,42121,48424,160,0,Batteries,Vehicle Management,380000
South Lakeland District Council,http://opendatacommunities.org/id/district-council/south-lakeland,30/04/2015,Revenues and Benefits,Central Services,http://opendatacommunities.org/def/concept/finance/sercop/objective/102,ROYAL MAIL GROUP PLC,,42102,48425,55.17,0,2014-15  Postal Charges a/c 0055114000,Mail Services,300000
South Lakeland District Council,http://opendatacommunities.org/id/district-council/south-lakeland,30/04/2015,Revenues and Benefits,SLDC as Agent,,ROYAL MAIL GROUP PLC,,42102,48426,20475.91,0,2014-15  Postal Charges a/c 0198123013,Financial Services,200000
South Lakeland District Council,http://opendatacommunities.org/id/district-council/south-lakeland,30/04/2015,Revenues and Benefits,Central Services,http://opendatacommunities.org/def/concept/finance/sercop/objective/102,BADENOCH & CLARK,1356186,42102,48430,493.4,0,Revs and Bens,Consultancy,150000
South Lakeland District Council,http://opendatacommunities.org/id/district-council/south-lakeland,30/04/2015,Democratic Services,Cultural Environmental Regulatory & Planning Services,http://opendatacommunities.org/def/concept/finance/sercop/objective/104,Ulverston Community Enterprises Ltd,8904327,42102,48431,8000,0,Contribution to Assets Transfer,Financial Services,200000
South Lakeland District Council,http://opendatacommunities.org/id/district-council/south-lakeland,30/04/2015,Policy & Partnerships,Cultural Environmental Regulatory & Planning Services,http://opendatacommunities.org/def/concept/finance/sercop/objective/104,YOUNG CUMBRIA,4631820,42102,48432,1000,0,Cllr Holland member locality budget,Financial Services,200000
South Lakeland District Council,http://opendatacommunities.org/id/district-council/south-lakeland,30/04/2015,Business Support Community Services,Cultural Environmental Regulatory & Planning Services,http://opendatacommunities.org/def/concept/finance/sercop/objective/104,HER MAJESTY'S COURTS & TRIBUNAL SERVICE,,42102,48433,20,0,Obtain warrant from,Human Resources,260000
South Lakeland District Council,http://opendatacommunities.org/id/district-council/south-lakeland,30/04/2015,Technical Team,Cultural Environmental Regulatory & Planning Services,http://opendatacommunities.org/def/concept/finance/sercop/objective/104,Matchtech,2526418,42102,48434,781.2,0,TO SUPPLY  CONTRACT 16,Consultancy,150000
South Lakeland District Council,http://opendatacommunities.org/id/district-council/south-lakeland,30/04/2015,Social Enterprise Admin,Cultural Environmental Regulatory & Planning Services,http://opendatacommunities.org/def/concept/finance/sercop/objective/104,Matchtech,2526418,42102,48435,1068.19,0,TO SUPPLY DEVELOPMENT CONTROL TEAM,Consultancy,150000
South Lakeland District Council,http://opendatacommunities.org/id/district-council/south-lakeland,30/04/2015,Coronation Hall,Cultural Environmental Regulatory & Planning Services,http://opendatacommunities.org/def/concept/finance/sercop/objective/104,SOUTH CUMBRIA MUSICAL FESTIVAL,,42102,48436,50,0,Half page advertisement in the South,Facilities & Management Services,190000
South Lakeland District Council,http://opendatacommunities.org/id/district-council/south-lakeland,30/04/2015,Revenues and Benefits,SLDC as Agent,,ROYAL MAIL GROUP PLC,,42102,48439,1992.94,0,Postal Charges a/c 0198123013,Financial Services,200000
South Lakeland District Council,http://opendatacommunities.org/id/district-council/south-lakeland,30/04/2015,Business Support Community Services,Housing Services,http://opendatacommunities.org/def/concept/finance/sercop/objective/108,Great Head House Estates,1645885,42102,48440,400,0,Rent in advance ,Social Community Care Supplies & Services,410000
South Lakeland District Council,http://opendatacommunities.org/id/district-council/south-lakeland,30/04/2015,Business Support Community Services,Housing Services,http://opendatacommunities.org/def/concept/finance/sercop/objective/108,Landlord,,42102,48441,600,0,Monthly rent ,Social Community Care Supplies & Services,410000
South Lakeland District Council,http://opendatacommunities.org/id/district-council/south-lakeland,30/04/2015,Business Support Community Services,Housing Services,http://opendatacommunities.org/def/concept/finance/sercop/objective/108,Landlord,,42102,48442,400,0,Monthly rent ,Social Community Care Supplies & Services,410000
South Lakeland District Council,http://opendatacommunities.org/id/district-council/south-lakeland,30/04/2015,Business Support Community Services,Housing Services,http://opendatacommunities.org/def/concept/finance/sercop/objective/108,Landlord,,42102,48443,400,0,Monthly rent ,Social Community Care Supplies & Services,410000
South Lakeland District Council,http://opendatacommunities.org/id/district-council/south-lakeland,30/04/2015,Business Support Community Services,Housing Services,http://opendatacommunities.org/def/concept/finance/sercop/objective/108,Landlord,,42102,48444,500,0,Monthly rent ,Social Community Care Supplies & Services,410000
South Lakeland District Council,http://opendatacommunities.org/id/district-council/south-lakeland,30/04/2015,Business Support Community Services,Housing Services,http://opendatacommunities.org/def/concept/finance/sercop/objective/108,Landlord,,42102,48445,400,0,Monthly rent ,Social Community Care Supplies & Services,410000
South Lakeland District Council,http://opendatacommunities.org/id/district-council/south-lakeland,30/04/2015,Business Support Community Services,Housing Services,http://opendatacommunities.org/def/concept/finance/sercop/objective/108,Landlord,,42102,48446,520,0,Monthly rent,Social Community Care Supplies & Services,410000
South Lakeland District Council,http://opendatacommunities.org/id/district-council/south-lakeland,30/04/2015,Human Resources,Non-Service Payments,,CYCLESCHEME LTD,5363678,42102,48447,833.33,0,Cycle w267361,Financial Services,200000
South Lakeland District Council,http://opendatacommunities.org/id/district-council/south-lakeland,30/04/2015,Business Support Community Services,Internal Trading Accounts,,Harry Park Tyres Ltd,8131208,42107,48448,80,0,Tyres,Vehicle Management,380000
South Lakeland District Council,http://opendatacommunities.org/id/district-council/south-lakeland,30/04/2015,Business Support Community Services,Internal Trading Accounts,,DENNIS EAGLE LTD,3794455,42109,48449,63.65,0,Latch,Vehicle Management,380000
South Lakeland District Council,http://opendatacommunities.org/id/district-council/south-lakeland,30/04/2015,Business Support Community Services,Internal Trading Accounts,,LAKELAND TRUCKS LTD,2464423,42107,48450,122.5,0,Repair AdBlue fault,Vehicle Management,380000
South Lakeland District Council,http://opendatacommunities.org/id/district-council/south-lakeland,30/04/2015,Social Enterprise Admin,Central Services,http://opendatacommunities.org/def/concept/finance/sercop/objective/102,WOOF'S OF SEDBERGH,,42107,48451,190,0,MINI BUS SITE VISITS FOR MEMBERS RE,Vehicle Management,380000
South Lakeland District Council,http://opendatacommunities.org/id/district-council/south-lakeland,30/04/2015,Development Implementation,Cultural Environmental Regulatory & Planning Services,http://opendatacommunities.org/def/concept/finance/sercop/objective/104,Canal & River Trust,7807276,42107,48452,4000,0,Contribution to Project Delivery for LCR,Environmental Services,180000
South Lakeland District Council,http://opendatacommunities.org/id/district-council/south-lakeland,30/04/2015,ICT Group,Central Services,http://opendatacommunities.org/def/concept/finance/sercop/objective/102,PROBRAND LTD,2653446,42109,48453,713.31,0,AZ461/65195519AF01- A00  Adobe - TLPG,Information Communication Technology,270000
South Lakeland District Council,http://opendatacommunities.org/id/district-council/south-lakeland,30/04/2015,Social Enterprise Admin,Central Services,http://opendatacommunities.org/def/concept/finance/sercop/objective/102,MARGARET BARROW INTERIORS LTD T/A MBI,,42107,48455,260,0,1 x Chair T106 Black Havana,Furniture & Soft Furnishings,210000
South Lakeland District Council,http://opendatacommunities.org/id/district-council/south-lakeland,30/04/2015,Social Enterprise Admin,Central Services,http://opendatacommunities.org/def/concept/finance/sercop/objective/102,MARGARET BARROW INTERIORS LTD T/A MBI,,42107,48456,260,0,1 x chair T106 Black Havana,Furniture & Soft Furnishings,210000
South Lakeland District Council,http://opendatacommunities.org/id/district-council/south-lakeland,30/04/2015,Business Support Community Services,Internal Trading Accounts,,FUCHS LUBRICANTS (UK) PLC,2412689,42107,48457,820,0,Oil,Vehicle Management,380000
South Lakeland District Council,http://opendatacommunities.org/id/district-council/south-lakeland,30/04/2015,ICT Group,Central Services,http://opendatacommunities.org/def/concept/finance/sercop/objective/102,NDL SOFTWARE LTD,1579602,42109,48458,12000,0,"Mobile working software, see extra",Information Communication Technology,270000
South Lakeland District Council,http://opendatacommunities.org/id/district-council/south-lakeland,30/04/2015,Development Implementation,Cultural Environmental Regulatory & Planning Services,http://opendatacommunities.org/def/concept/finance/sercop/objective/104,KENDAL COLLEGE,,42109,48459,52048.5,0,Management Fee for Kendal Museum,Financial Services,200000
South Lakeland District Council,http://opendatacommunities.org/id/district-council/south-lakeland,30/04/2015,Legal Services,Central Services,http://opendatacommunities.org/def/concept/finance/sercop/objective/102,KINGS CHAMBERS,7091130,42107,48460,675,0,Fees re:  (G H) -v-,Legal Services,280000
South Lakeland District Council,http://opendatacommunities.org/id/district-council/south-lakeland,30/04/2015,Revenues and Benefits,Central Services,http://opendatacommunities.org/def/concept/finance/sercop/objective/102,DIXON PRINTING CO LTD,,42107,48461,1524,0,"7,500 SLD Benefit Information Booklets",Stationery,340000
South Lakeland District Council,http://opendatacommunities.org/id/district-council/south-lakeland,30/04/2015,Social Enterprise Admin,Highways & Transport Services,http://opendatacommunities.org/def/concept/finance/sercop/objective/107,CREDIT CALL LTD (NCR),,42095,48462,521.4,0,Credit Call Commission 2014/15,Financial Services,200000
South Lakeland District Council,http://opendatacommunities.org/id/district-council/south-lakeland,30/04/2015,Social Enterprise Admin,Cultural Environmental Regulatory & Planning Services,http://opendatacommunities.org/def/concept/finance/sercop/objective/104,ALLSTAR BUSINESS SOLUTIONS LTD (NCR),2631112,42095,48467,71.85,0,Additional Fuel for Parks vehicle PX63,Utilities,370000
South Lakeland District Council,http://opendatacommunities.org/id/district-council/south-lakeland,30/04/2015,Social Enterprise Admin,Highways & Transport Services,http://opendatacommunities.org/def/concept/finance/sercop/objective/107,ALLSTAR BUSINESS SOLUTIONS LTD (NCR),2631112,42095,48468,220.41,0,Fuel for car parks' vehicles starting 1,Utilities,370000
South Lakeland District Council,http://opendatacommunities.org/id/district-council/south-lakeland,30/04/2015,Social Enterprise Admin,Cultural Environmental Regulatory & Planning Services,http://opendatacommunities.org/def/concept/finance/sercop/objective/104,ALLSTAR BUSINESS SOLUTIONS LTD (NCR),2631112,42095,48468,84.98,0,Fuel for car parks' vehicles starting 1,Utilities,370000
South Lakeland District Council,http://opendatacommunities.org/id/district-council/south-lakeland,30/04/2015,Business Support Community Services,Internal Trading Accounts,,ALLSTAR BUSINESS SOLUTIONS LTD (NCR),2631112,42095,48469,3878.47,0,Fuel to 15/03,Utilities,370000
South Lakeland District Council,http://opendatacommunities.org/id/district-council/south-lakeland,30/04/2015,Business Support Community Services,Internal Trading Accounts,,ALLSTAR BUSINESS SOLUTIONS LTD (NCR),2631112,42095,48469,136.88,0,Fuel to 15/03,Utilities,370000
South Lakeland District Council,http://opendatacommunities.org/id/district-council/south-lakeland,30/04/2015,Business Support Community Services,Internal Trading Accounts,,ALLSTAR BUSINESS SOLUTIONS LTD (NCR),2631112,42095,48469,10984.14,0,Fuel to 15/03,Utilities,370000
South Lakeland District Council,http://opendatacommunities.org/id/district-council/south-lakeland,30/04/2015,Human Resources,Central Services,http://opendatacommunities.org/def/concept/finance/sercop/objective/102,The White Paper Conference Company Ltd,3714517,42107,48470,348,0,Discrimination conference,Education,170000
South Lakeland District Council,http://opendatacommunities.org/id/district-council/south-lakeland,30/04/2015,Business Support Community Services,Internal Trading Accounts,,BRIAN ARMISTEAD LTD T/A SINKFALL RECYCLI,4133280,42107,48471,1012.4,0,Green waste tipping - April (estimated),Environmental Services,180000
South Lakeland District Council,http://opendatacommunities.org/id/district-council/south-lakeland,30/04/2015,Development Implementation,Cultural Environmental Regulatory & Planning Services,http://opendatacommunities.org/def/concept/finance/sercop/objective/104,ORMROD SIGNS LTD,4533430,42107,48472,390,0,"Sign for Pop Up Shop, Finkle Street,",Environmental Services,180000
South Lakeland District Council,http://opendatacommunities.org/id/district-council/south-lakeland,30/04/2015,Development Implementation,Cultural Environmental Regulatory & Planning Services,http://opendatacommunities.org/def/concept/finance/sercop/objective/104,ORMROD SIGNS LTD,4533430,42107,48473,205,0,"A-Board for Pop Up Shop, Kendal",Environmental Services,180000
South Lakeland District Council,http://opendatacommunities.org/id/district-council/south-lakeland,30/04/2015,Development Implementation,Central Services,http://opendatacommunities.org/def/concept/finance/sercop/objective/102,CASTLE ALARMS 1981 LTD,9231500,42107,48474,166,0,CCTV & Panic Alarms for new Contact,Financial Services,200000
South Lakeland District Council,http://opendatacommunities.org/id/district-council/south-lakeland,30/04/2015,ICT Group,Central Services,http://opendatacommunities.org/def/concept/finance/sercop/objective/102,Insight Direct (Uk) Ltd,2579852,42107,48475,2869.53,0,"Lenovo B50-70 80EU15.6"" - Core i5 4210U",Information Communication Technology,270000
South Lakeland District Council,http://opendatacommunities.org/id/district-council/south-lakeland,30/04/2015,Business Support Community Services,Cultural Environmental Regulatory & Planning Services,http://opendatacommunities.org/def/concept/finance/sercop/objective/104,KENDAL SECURITY CENTRE LTD,3179893,42107,48476,120,0,"WID Hillside Cottage, 18 Fairfield,",Human Resources,260000
South Lakeland District Council,http://opendatacommunities.org/id/district-council/south-lakeland,30/04/2015,Business Support Community Services,Internal Trading Accounts,,THOMAS GRAHAM & SONS (IRON & STEEL) LTD,656879,42107,48477,409.76,0,Steel,Cleaning & Janitorial,130000
South Lakeland District Council,http://opendatacommunities.org/id/district-council/south-lakeland,30/04/2015,Business Support Community Services,Internal Trading Accounts,,THOMAS GRAHAM & SONS (IRON & STEEL) LTD,656879,42107,48478,89.1,0,Welding mask,Clothing,140000
South Lakeland District Council,http://opendatacommunities.org/id/district-council/south-lakeland,30/04/2015,Lake Wardens,Cultural Environmental Regulatory & Planning Services,http://opendatacommunities.org/def/concept/finance/sercop/objective/104,BISHOP SPORTS & LEISURE LTD,842463,42107,48479,8.3,0,15 x Boxes of Scorecard Pencils,Furniture & Soft Furnishings,210000
South Lakeland District Council,http://opendatacommunities.org/id/district-council/south-lakeland,30/04/2015,Lake Wardens,Cultural Environmental Regulatory & Planning Services,http://opendatacommunities.org/def/concept/finance/sercop/objective/104,BISHOP SPORTS & LEISURE LTD,842463,42107,48480,100.7,0,15 x Boxes of Scorecard Pencils,Furniture & Soft Furnishings,210000
South Lakeland District Council,http://opendatacommunities.org/id/district-council/south-lakeland,30/04/2015,Human Resources,Central Services,http://opendatacommunities.org/def/concept/finance/sercop/objective/102,MIDLAND SOFTWARE LTD,1852206,42107,48481,450,0,LGPS Software,Information Communication Technology,270000
South Lakeland District Council,http://opendatacommunities.org/id/district-council/south-lakeland,30/04/2015,Development Strategy,Cultural Environmental Regulatory & Planning Services,http://opendatacommunities.org/def/concept/finance/sercop/objective/104,Matchtech,2526418,42107,48482,833.17,0,AT work for 12 weeks (29 hours,Consultancy,150000
South Lakeland District Council,http://opendatacommunities.org/id/district-council/south-lakeland,30/04/2015,Development Strategy,Cultural Environmental Regulatory & Planning Services,http://opendatacommunities.org/def/concept/finance/sercop/objective/104,Matchtech,2526418,42107,48483,861.9,0,AT work for 12 weeks (29 hours,Consultancy,150000
South Lakeland District Council,http://opendatacommunities.org/id/district-council/south-lakeland,30/04/2015,Development Management,Cultural Environmental Regulatory & Planning Services,http://opendatacommunities.org/def/concept/finance/sercop/objective/104,CHRIS BOWKER LTD,1642561,42116,48484,30,0,Inspection of electrical work and,Facilities & Management Services,190000
South Lakeland District Council,http://opendatacommunities.org/id/district-council/south-lakeland,30/04/2015,Social Enterprise Admin,Highways & Transport Services,http://opendatacommunities.org/def/concept/finance/sercop/objective/107,METRIC GROUP LIMITED,2560839,42107,48485,693,0,Web hosting and web tariff editor for 66,Vehicle Management,380000
South Lakeland District Council,http://opendatacommunities.org/id/district-council/south-lakeland,30/04/2015,Business Support Community Services,Internal Trading Accounts,,BRIAN ARMISTEAD LTD T/A SINKFALL RECYCLI,4133280,42114,48486,775.2,0,Green waste tipping - 2015/16,Environmental Services,180000
South Lakeland District Council,http://opendatacommunities.org/id/district-council/south-lakeland,30/04/2015,Coronation Hall,Cultural Environmental Regulatory & Planning Services,http://opendatacommunities.org/def/concept/finance/sercop/objective/104,LINNEY P A SYSTEMS LTD,9016104,42107,48488,345,0,Light/Sound technician for Ulverston,Consultancy,150000
South Lakeland District Council,http://opendatacommunities.org/id/district-council/south-lakeland,30/04/2015,Social Enterprise Admin,Cultural Environmental Regulatory & Planning Services,http://opendatacommunities.org/def/concept/finance/sercop/objective/104,Planning Jungle Ltd,7854370,42107,48491,200,0,ANNUAL I YEAR MEMBERSHIP FOR PLANNING,Consultancy,150000
South Lakeland District Council,http://opendatacommunities.org/id/district-council/south-lakeland,30/04/2015,Social Enterprise Admin,Central Services,http://opendatacommunities.org/def/concept/finance/sercop/objective/102,LLCI LTD,6792908,42107,48492,115,0,SUBSCRIPTION TO LLCI 2014/2015,Financial Services,200000
South Lakeland District Council,http://opendatacommunities.org/id/district-council/south-lakeland,30/04/2015,Revenues and Benefits,Central Services,http://opendatacommunities.org/def/concept/finance/sercop/objective/102,VENN GROUP RECRUITMENT SOLUTIONS,,42107,48493,869.5,0,V McD,Consultancy,150000
South Lakeland District Council,http://opendatacommunities.org/id/district-council/south-lakeland,30/04/2015,Social Enterprise Admin,Cultural Environmental Regulatory & Planning Services,http://opendatacommunities.org/def/concept/finance/sercop/objective/104,B & J METALS (SKIP HIRE) LTD,4634318,42116,48494,630,0,Grounds waste disposal- Sandylands Road,Environmental Services,180000
South Lakeland District Council,http://opendatacommunities.org/id/district-council/south-lakeland,30/04/2015,Social Enterprise Admin,Cultural Environmental Regulatory & Planning Services,http://opendatacommunities.org/def/concept/finance/sercop/objective/104,B & J METALS (SKIP HIRE) LTD,4634318,42116,48494,2750,0,Grounds waste disposal- Sandylands Road,Environmental Services,180000
South Lakeland District Council,http://opendatacommunities.org/id/district-council/south-lakeland,30/04/2015,Printing Section,Central Services,http://opendatacommunities.org/def/concept/finance/sercop/objective/102,ROSEFOX PAPER LIMITED,1655083,42109,48495,578.76,0,Conqueror A4 120gsm High White Wove,Stationery,340000
South Lakeland District Council,http://opendatacommunities.org/id/district-council/south-lakeland,30/04/2015,Social Enterprise Admin,Central Services,http://opendatacommunities.org/def/concept/finance/sercop/objective/102,B & J METALS (SKIP HIRE) LTD,4634318,42107,48496,300,0,Skip Hire - Monday 30th March - Thursday,Environmental Services,180000
South Lakeland District Council,http://opendatacommunities.org/id/district-council/south-lakeland,30/04/2015,Social Enterprise Admin,Highways & Transport Services,http://opendatacommunities.org/def/concept/finance/sercop/objective/107,METRIC GROUP LIMITED,2560839,42107,48497,442.5,0,Creation of configuration software based,Street & Traffic Management,350000
South Lakeland District Council,http://opendatacommunities.org/id/district-council/south-lakeland,30/04/2015,Policy & Partnerships,Cultural Environmental Regulatory & Planning Services,http://opendatacommunities.org/def/concept/finance/sercop/objective/104,EGTON NEWLAND MANSRIGGS OSMOTHERLEY P.C.,,42107,48498,1200,0,Funding towards the Dementia Project,Financial Services,200000
South Lakeland District Council,http://opendatacommunities.org/id/district-council/south-lakeland,30/04/2015,Business Support Community Services,Internal Trading Accounts,,PIER 1 METALWORKS LTD,4291520,42109,48499,374.54,0,Make & fit safety barriers,Furniture & Soft Furnishings,210000
South Lakeland District Council,http://opendatacommunities.org/id/district-council/south-lakeland,30/04/2015,Business Support Community Services,Cultural Environmental Regulatory & Planning Services,http://opendatacommunities.org/def/concept/finance/sercop/objective/104,OCS GROUP LTD T/A CANNON HYGIENE LTD,1298292,42107,48500,1757.9,0,Clinical waste collections - March,Environmental Services,180000
South Lakeland District Council,http://opendatacommunities.org/id/district-council/south-lakeland,30/04/2015,Business Support Community Services,Internal Trading Accounts,,CUMBRIA TRUCK CENTRE LTD,4298488,42107,48501,503.99,0,Spring,Vehicle Management,380000
South Lakeland District Council,http://opendatacommunities.org/id/district-council/south-lakeland,30/04/2015,Business Support Community Services,Internal Trading Accounts,,HADWINS (LINDALE) LTD,986050,42109,48502,34.39,0,Light,Vehicle Management,380000
South Lakeland District Council,http://opendatacommunities.org/id/district-council/south-lakeland,30/04/2015,Business Support Community Services,Internal Trading Accounts,,K S INTERNATIONAL LTD,2703321,42107,48504,310,0,Headlights,Vehicle Management,380000
South Lakeland District Council,http://opendatacommunities.org/id/district-council/south-lakeland,30/04/2015,Business Support Community Services,Cultural Environmental Regulatory & Planning Services,http://opendatacommunities.org/def/concept/finance/sercop/objective/104,OCS GROUP LTD T/A CANNON HYGIENE LTD,1298292,42107,48505,406.72,0,Clinical waste collections - April 2015,Environmental Services,180000
South Lakeland District Council,http://opendatacommunities.org/id/district-council/south-lakeland,30/04/2015,Business Support Community Services,Internal Trading Accounts,,SOLWAY DAF,1393710,42107,48506,13.58,0,Gas sensor,Vehicle Management,380000
South Lakeland District Council,http://opendatacommunities.org/id/district-council/south-lakeland,30/04/2015,Business Support Community Services,Internal Trading Accounts,,Harry Park Tyres Ltd,8131208,42107,48507,1085,0,Tyres,Vehicle Management,380000
South Lakeland District Council,http://opendatacommunities.org/id/district-council/south-lakeland,30/04/2015,Business Support Community Services,Internal Trading Accounts,,DENNIS EAGLE LTD,3794455,42109,48508,101,0,Latch,Vehicle Management,380000
South Lakeland District Council,http://opendatacommunities.org/id/district-council/south-lakeland,30/04/2015,Business Support Community Services,Internal Trading Accounts,,DENNIS EAGLE LTD,3794455,42109,48509,1125,0,Latch,Vehicle Management,380000
South Lakeland District Council,http://opendatacommunities.org/id/district-council/south-lakeland,30/04/2015,Business Support Community Services,Internal Trading Accounts,,C T HAYTON LTD,1212766,42107,48510,110.42,0,Grips,Vehicle Management,380000
South Lakeland District Council,http://opendatacommunities.org/id/district-council/south-lakeland,30/04/2015,Business Support Community Services,Internal Trading Accounts,,EK MOTOR FACTORS LTD,838524,42107,48511,315,0,Oil filters,Vehicle Management,380000
South Lakeland District Council,http://opendatacommunities.org/id/district-council/south-lakeland,30/04/2015,Business Support Community Services,Internal Trading Accounts,,HYDRAIR TRUCK & TRAILER PARTS LTD,,42109,48512,14.42,0,Parts,Vehicle Management,380000
South Lakeland District Council,http://opendatacommunities.org/id/district-council/south-lakeland,30/04/2015,Business Support Community Services,Internal Trading Accounts,,BERENDSEN UK LTD,228604,42107,48513,180.38,0,Workwear hire 29/03/15 - 28/03/16,Clothing,140000
South Lakeland District Council,http://opendatacommunities.org/id/district-council/south-lakeland,30/04/2015,Social Enterprise Admin,Highways & Transport Services,http://opendatacommunities.org/def/concept/finance/sercop/objective/107,MOUCHEL LTD,1686040,42107,48515,343.03,0,QN3433 Mobi Control Licence renewal for,Information Communication Technology,270000
South Lakeland District Council,http://opendatacommunities.org/id/district-council/south-lakeland,30/04/2015,Social Enterprise Admin,Cultural Environmental Regulatory & Planning Services,http://opendatacommunities.org/def/concept/finance/sercop/objective/104,Cleartrack (EvL) Ltd,3881690,42107,48516,3700,0,Tree works at Millerground for,Environmental Services,180000
South Lakeland District Council,http://opendatacommunities.org/id/district-council/south-lakeland,30/04/2015,Policy & Partnerships,Central Services,http://opendatacommunities.org/def/concept/finance/sercop/objective/102,EQUALITY WORKS LIMITED,,42107,48517,580,0,Equality works consultant for equality,Consultancy,150000
South Lakeland District Council,http://opendatacommunities.org/id/district-council/south-lakeland,30/04/2015,Business Support Community Services,Central Services,http://opendatacommunities.org/def/concept/finance/sercop/objective/102,PLASTIC CARD SOLUTIONS LTD,4849000,42109,48518,59.5,0,Hackney Carriage Driver Badges Thermal,Furniture & Soft Furnishings,210000
South Lakeland District Council,http://opendatacommunities.org/id/district-council/south-lakeland,30/04/2015,Financial Services,Central Services,http://opendatacommunities.org/def/concept/finance/sercop/objective/102,LOCAL GOVERNMENT ASSOCIATION,,42107,48519,10320.32,0,LGA Subscription 2015/16,Financial Services,200000
South Lakeland District Council,http://opendatacommunities.org/id/district-council/south-lakeland,30/04/2015,Business Support Community Services,Central Services,http://opendatacommunities.org/def/concept/finance/sercop/objective/102,LANCASTER TRAINING SERVICES LTD,1447612,42107,48520,51.6,0,Training 2015/16,Education,170000
South Lakeland District Council,http://opendatacommunities.org/id/district-council/south-lakeland,30/04/2015,Business Support Community Services,Internal Trading Accounts,,LANCASTER TRAINING SERVICES LTD,1447612,42107,48520,103.2,0,Training 2015/16,Education,170000
South Lakeland District Council,http://opendatacommunities.org/id/district-council/south-lakeland,30/04/2015,Business Support Community Services,Internal Trading Accounts,,LANCASTER TRAINING SERVICES LTD,1447612,42107,48520,206.45,0,Training 2015/16,Education,170000
South Lakeland District Council,http://opendatacommunities.org/id/district-council/south-lakeland,30/04/2015,Business Support Community Services,Internal Trading Accounts,,FAUN ZOELLER (UK) LTD,751804,42107,48521,336.85,0,Sensor,Vehicle Management,380000
South Lakeland District Council,http://opendatacommunities.org/id/district-council/south-lakeland,30/04/2015,Business Support Community Services,Internal Trading Accounts,,Hydrodec (UK) Ltd T/A OSS Group,8652156,42107,48522,85,0,Waste oil collection,Cleaning & Janitorial,130000
South Lakeland District Council,http://opendatacommunities.org/id/district-council/south-lakeland,30/04/2015,Business Support Community Services,Environment Regulatory,,Great Green Systems Ltd,6632263,42107,48523,244.2,0,Replaces order 24352.,Vehicle Management,380000
South Lakeland District Council,http://opendatacommunities.org/id/district-council/south-lakeland,30/04/2015,Kendal Town Hall,Cultural Environmental Regulatory & Planning Services,http://opendatacommunities.org/def/concept/finance/sercop/objective/104,ALEXANDRA PLC,,42107,48524,159.96,0,2 x Navy Blue fleece (Large),Clothing,140000
South Lakeland District Council,http://opendatacommunities.org/id/district-council/south-lakeland,30/04/2015,Social Enterprise Admin,Culture and Related Serv,http://opendatacommunities.org/def/concept/finance/sercop/objective/104,Walcon Marine Ltd,1143519,42107,48525,198306.23,0,Ferry Nab Marina Development,Financial Services,200000
South Lakeland District Council,http://opendatacommunities.org/id/district-council/south-lakeland,30/04/2015,Coronation Hall,External Trading Accounts,,Morson International,,42114,48526,99.4,0,Ulverston Market Hall cleaner from April,Consultancy,150000
South Lakeland District Council,http://opendatacommunities.org/id/district-council/south-lakeland,30/04/2015,Business Support Community Services,Internal Trading Accounts,,ARCO LIMITED,133804,42109,48527,45,0,PPE 2015/16,Clothing,140000
South Lakeland District Council,http://opendatacommunities.org/id/district-council/south-lakeland,30/04/2015,Business Support Community Services,Internal Trading Accounts,,ARCO LIMITED,133804,42109,48527,0,0,PPE 2015/16,Clothing,140000
South Lakeland District Council,http://opendatacommunities.org/id/district-council/south-lakeland,30/04/2015,Business Support Community Services,Cultural Environmental Regulatory & Planning Services,http://opendatacommunities.org/def/concept/finance/sercop/objective/104,CASTLE ALARMS 1981 LTD,9231500,42107,48528,128,0,"WID Hillside Cottage, 18 Fairfield,",Human Resources,260000
South Lakeland District Council,http://opendatacommunities.org/id/district-council/south-lakeland,30/04/2015,Lake Wardens,Cultural Environmental Regulatory & Planning Services,http://opendatacommunities.org/def/concept/finance/sercop/objective/104,ENVIROFIRST LTD,5999123,42107,48530,21,0,Monthly Rental & Emptying of Re-Cycling,Environmental Services,180000
South Lakeland District Council,http://opendatacommunities.org/id/district-council/south-lakeland,30/04/2015,Social Enterprise Admin,Central Services,http://opendatacommunities.org/def/concept/finance/sercop/objective/102,LAKE DISTRICT NATIONAL PARK AUTHORITY,,42114,48533,3070,0,LAND CHARGE SEARCH ENQUIRIES LDNPA,Financial Services,200000
South Lakeland District Council,http://opendatacommunities.org/id/district-council/south-lakeland,30/04/2015,Business Support Community Services,Cultural Environmental Regulatory & Planning Services,http://opendatacommunities.org/def/concept/finance/sercop/objective/104,Public Health England,,42107,48534,75.18,0,micro testing of two samples of cockles,Environmental Services,180000
South Lakeland District Council,http://opendatacommunities.org/id/district-council/south-lakeland,30/04/2015,Business Support Community Services,Cultural Environmental Regulatory & Planning Services,http://opendatacommunities.org/def/concept/finance/sercop/objective/104,Public Health England,,42107,48535,75.18,0,micro testing of two samples of cockles,Environmental Services,180000
South Lakeland District Council,http://opendatacommunities.org/id/district-council/south-lakeland,30/04/2015,Business Support Community Services,Cultural Environmental Regulatory & Planning Services,http://opendatacommunities.org/def/concept/finance/sercop/objective/104,Public Health England,,42107,48536,75.18,0,microbiological examination of cockle,Environmental Services,180000
South Lakeland District Council,http://opendatacommunities.org/id/district-council/south-lakeland,30/04/2015,Business Support Community Services,Internal Trading Accounts,,FUCHS LUBRICANTS (UK) PLC,2412689,42109,48537,432,0,Oil,Vehicle Management,380000
South Lakeland District Council,http://opendatacommunities.org/id/district-council/south-lakeland,30/04/2015,Development Management,Cultural Environmental Regulatory & Planning Services,http://opendatacommunities.org/def/concept/finance/sercop/objective/104,CHRIS BOWKER LTD,1642561,42116,48538,60,0,Inspection of electrical work and,Facilities & Management Services,190000
South Lakeland District Council,http://opendatacommunities.org/id/district-council/south-lakeland,30/04/2015,Revenues and Benefits,Central Services,http://opendatacommunities.org/def/concept/finance/sercop/objective/102,JACOBS,,42107,48539,75,0,2015-2016 Vat only,Financial Services,200000
South Lakeland District Council,http://opendatacommunities.org/id/district-council/south-lakeland,30/04/2015,Revenues and Benefits,Central Services,http://opendatacommunities.org/def/concept/finance/sercop/objective/102,PITNEY BOWES LTD,182037,42107,48540,530,0,2015-2016   Stationery & office,Stationery,340000
South Lakeland District Council,http://opendatacommunities.org/id/district-council/south-lakeland,30/04/2015,Revenues and Benefits,Central Services,http://opendatacommunities.org/def/concept/finance/sercop/objective/102,MERITEC LTD,3224622,42107,48541,139.5,0,RAB Processing Contract and Agency,Consultancy,150000
South Lakeland District Council,http://opendatacommunities.org/id/district-council/south-lakeland,30/04/2015,Revenues and Benefits,Central Services,http://opendatacommunities.org/def/concept/finance/sercop/objective/102,EXAPRINT,8032272,42107,48542,85.25,0,Quotation Reference EXA0119,Information Communication Technology,270000
South Lakeland District Council,http://opendatacommunities.org/id/district-council/south-lakeland,30/04/2015,Business Support Community Services,Housing Services,http://opendatacommunities.org/def/concept/finance/sercop/objective/108,ADECCO UK LIMITED,593232,42116,48543,102.7,0,Cleaner for Town View Fields,Consultancy,150000
South Lakeland District Council,http://opendatacommunities.org/id/district-council/south-lakeland,30/04/2015,Social Enterprise Admin,Central Services,http://opendatacommunities.org/def/concept/finance/sercop/objective/102,Masterstaff Limited,2777593,42109,48544,57,0,Cleaner for 4 weeks starting,Consultancy,150000
South Lakeland District Council,http://opendatacommunities.org/id/district-council/south-lakeland,30/04/2015,Business Support Community Services,Housing Services,http://opendatacommunities.org/def/concept/finance/sercop/objective/108,James Andrews Recruitment Solutions,6834852,42107,48545,925,0,Payment ,Consultancy,150000
South Lakeland District Council,http://opendatacommunities.org/id/district-council/south-lakeland,30/04/2015,Human Resources,Central Services,http://opendatacommunities.org/def/concept/finance/sercop/objective/102,WORKSOLVE PEOPLE SOLUTIONS LTD,7395622,42107,48547,2337.5,0,3 full days of consulting,Consultancy,150000
South Lakeland District Council,http://opendatacommunities.org/id/district-council/south-lakeland,30/04/2015,Kendal Town Hall,External Trading Accounts,,NABMA,7002137,42107,48548,636,0,NABMA annual subscription fee (1st April,Financial Services,200000
South Lakeland District Council,http://opendatacommunities.org/id/district-council/south-lakeland,30/04/2015,Business Support Community Services,Central Services,http://opendatacommunities.org/def/concept/finance/sercop/objective/102,CUMBRIA WASTE MANAGEMENT LIMITED,2665973,42107,48549,243.75,0,COTC cover at Ecclerigg - 2014/15,Consultancy,150000
South Lakeland District Council,http://opendatacommunities.org/id/district-council/south-lakeland,30/04/2015,Business Support Community Services,Central Services,http://opendatacommunities.org/def/concept/finance/sercop/objective/102,CUMBRIA WASTE MANAGEMENT LIMITED,2665973,42107,48550,292.5,0,COTC cover at Ecclerigg - 2014/15,Consultancy,150000
South Lakeland District Council,http://opendatacommunities.org/id/district-council/south-lakeland,30/04/2015,Social Enterprise Admin,Highways & Transport Services,http://opendatacommunities.org/def/concept/finance/sercop/objective/107,We Love Logos,,42107,48551,68.46,0,UC604 Uneek Fleece in Navy XL Qty 1 @,Clothing,140000
South Lakeland District Council,http://opendatacommunities.org/id/district-council/south-lakeland,30/04/2015,Business Support Community Services,Housing Services,http://opendatacommunities.org/def/concept/finance/sercop/objective/108,James Andrews Recruitment Solutions,6834852,42107,48552,737.5,0,Payment Housing,Consultancy,150000
South Lakeland District Council,http://opendatacommunities.org/id/district-council/south-lakeland,30/04/2015,Business Support Community Services,Housing Services,http://opendatacommunities.org/def/concept/finance/sercop/objective/108,Landlord,7009105,42107,48554,150,0,Payment for the bathroom flooring ,Social Community Care Supplies & Services,410000
South Lakeland District Council,http://opendatacommunities.org/id/district-council/south-lakeland,30/04/2015,Business Support Community Services,Housing Services,http://opendatacommunities.org/def/concept/finance/sercop/objective/108,Landlord,,42107,48555,520,0,Monthly rent ,Social Community Care Supplies & Services,410000
South Lakeland District Council,http://opendatacommunities.org/id/district-council/south-lakeland,30/04/2015,Business Support Community Services,Housing Services,http://opendatacommunities.org/def/concept/finance/sercop/objective/108,Landlord,7121028,42107,48556,400,0,Monthly rent ,Social Community Care Supplies & Services,410000
South Lakeland District Council,http://opendatacommunities.org/id/district-council/south-lakeland,30/04/2015,Business Support Community Services,Housing Services,http://opendatacommunities.org/def/concept/finance/sercop/objective/108,Landlord,,42107,48557,520,0,Monthly rent ,Social Community Care Supplies & Services,410000
South Lakeland District Council,http://opendatacommunities.org/id/district-council/south-lakeland,30/04/2015,Business Support Community Services,Housing Services,http://opendatacommunities.org/def/concept/finance/sercop/objective/108,Landlord,,42107,48558,520,0,Monthly rent ,Social Community Care Supplies & Services,410000
South Lakeland District Council,http://opendatacommunities.org/id/district-council/south-lakeland,30/04/2015,Business Support Community Services,Internal Trading Accounts,,EK MOTOR FACTORS LTD,838524,42114,48559,6.72,0,Ball joint,Vehicle Management,380000
South Lakeland District Council,http://opendatacommunities.org/id/district-council/south-lakeland,30/04/2015,Business Support Community Services,Internal Trading Accounts,,EK MOTOR FACTORS LTD,838524,42114,48560,8.38,0,Ball joint,Vehicle Management,380000
South Lakeland District Council,http://opendatacommunities.org/id/district-council/south-lakeland,30/04/2015,Business Support Community Services,Internal Trading Accounts,,EK MOTOR FACTORS LTD,838524,42114,48561,25,0,Ball joint,Vehicle Management,380000
South Lakeland District Council,http://opendatacommunities.org/id/district-council/south-lakeland,30/04/2015,Business Support Community Services,Internal Trading Accounts,,EK MOTOR FACTORS LTD,838524,42114,48562,-27.89,0,Ball joint,Vehicle Management,380000
South Lakeland District Council,http://opendatacommunities.org/id/district-council/south-lakeland,30/04/2015,Social Enterprise Admin,Highways & Transport Services,http://opendatacommunities.org/def/concept/finance/sercop/objective/107,NPS GROUP LTD,6614601,42109,48563,1800,0,Draft contingency plan for the,Street & Traffic Management,350000
South Lakeland District Council,http://opendatacommunities.org/id/district-council/south-lakeland,30/04/2015,Social Enterprise Admin,Culture and Related Serv,http://opendatacommunities.org/def/concept/finance/sercop/objective/104,NPS GROUP LTD,6614601,42109,48564,7900,0,re Ferry Nab project management and,Financial Services,200000
South Lakeland District Council,http://opendatacommunities.org/id/district-council/south-lakeland,30/04/2015,Financial Services,Central Services,http://opendatacommunities.org/def/concept/finance/sercop/objective/102,KING & SHAXSON LTD,869780,42109,48565,148.44,0,Custodian Fees 1.10.14 to31.12.14,Financial Services,200000
South Lakeland District Council,http://opendatacommunities.org/id/district-council/south-lakeland,30/04/2015,Business Support Community Services,Internal Trading Accounts,,ARCO LIMITED,133804,42109,48571,13.18,0,PPE 2015/16,Cleaning & Janitorial,130000
South Lakeland District Council,http://opendatacommunities.org/id/district-council/south-lakeland,30/04/2015,Business Support Community Services,Internal Trading Accounts,,ARCO LIMITED,133804,42109,48571,47.47,0,PPE 2015/16,Clothing,140000
South Lakeland District Council,http://opendatacommunities.org/id/district-council/south-lakeland,30/04/2015,Business Support Community Services,Internal Trading Accounts,,ARCO LIMITED,133804,42109,48571,0,0,PPE 2015/16,Cleaning & Janitorial,130000
South Lakeland District Council,http://opendatacommunities.org/id/district-council/south-lakeland,30/04/2015,Business Support Community Services,Internal Trading Accounts,,ARCO LIMITED,133804,42109,48571,0,0,PPE 2015/16,Clothing,140000
South Lakeland District Council,http://opendatacommunities.org/id/district-council/south-lakeland,30/04/2015,Business Support Community Services,Internal Trading Accounts,,RIBBLE FUEL OILS,,42109,48572,933.68,0,Gas oil for Canal Head,Utilities,370000
South Lakeland District Council,http://opendatacommunities.org/id/district-council/south-lakeland,30/04/2015,Social Enterprise Admin,Cultural Environmental Regulatory & Planning Services,http://opendatacommunities.org/def/concept/finance/sercop/objective/104,ALLSTAR BUSINESS SOLUTIONS LTD (NCR),2631112,42095,48573,72.5,0,Additional Fuel for Parks vehicle PX63,Utilities,370000
South Lakeland District Council,http://opendatacommunities.org/id/district-council/south-lakeland,30/04/2015,Social Enterprise Admin,Highways & Transport Services,http://opendatacommunities.org/def/concept/finance/sercop/objective/107,ALLSTAR BUSINESS SOLUTIONS LTD (NCR),2631112,42095,48574,307.11,0,Fuel for car parks' vehicles starting 1,Utilities,370000
South Lakeland District Council,http://opendatacommunities.org/id/district-council/south-lakeland,30/04/2015,Social Enterprise Admin,Cultural Environmental Regulatory & Planning Services,http://opendatacommunities.org/def/concept/finance/sercop/objective/104,ALLSTAR BUSINESS SOLUTIONS LTD (NCR),2631112,42095,48574,244.61,0,Fuel for car parks' vehicles starting 1,Utilities,370000
South Lakeland District Council,http://opendatacommunities.org/id/district-council/south-lakeland,30/04/2015,Business Support Community Services,Internal Trading Accounts,,ALLSTAR BUSINESS SOLUTIONS LTD (NCR),2631112,42095,48575,4169.45,0,Fuel to 31/03,Utilities,370000
South Lakeland District Council,http://opendatacommunities.org/id/district-council/south-lakeland,30/04/2015,Business Support Community Services,Internal Trading Accounts,,ALLSTAR BUSINESS SOLUTIONS LTD (NCR),2631112,42095,48575,225.01,0,Fuel to 31/03,Utilities,370000
South Lakeland District Council,http://opendatacommunities.org/id/district-council/south-lakeland,30/04/2015,Business Support Community Services,Internal Trading Accounts,,ALLSTAR BUSINESS SOLUTIONS LTD (NCR),2631112,42095,48575,12825.58,0,Fuel to 31/03,Utilities,370000
South Lakeland District Council,http://opendatacommunities.org/id/district-council/south-lakeland,30/04/2015,Social Enterprise Admin,Cultural Environmental Regulatory & Planning Services,http://opendatacommunities.org/def/concept/finance/sercop/objective/104,Matchtech,2526418,42109,48576,1068.19,0,TO SUPPLY DEVELOPMENT CONTROL TEAM,Consultancy,150000
South Lakeland District Council,http://opendatacommunities.org/id/district-council/south-lakeland,30/04/2015,Social Enterprise Admin,Cultural Environmental Regulatory & Planning Services,http://opendatacommunities.org/def/concept/finance/sercop/objective/104,NEWSQUEST (NORTH WEST) LTD,3102566,42114,48577,131,0,PUBLIC NOTICES FOR PLANNIG DEPARTMENT.,Facilities & Management Services,190000
South Lakeland District Council,http://opendatacommunities.org/id/district-council/south-lakeland,30/04/2015,Development Implementation,Cultural Environmental Regulatory & Planning Services,http://opendatacommunities.org/def/concept/finance/sercop/objective/104,THE PLAIN CREATIVE AGENCY LTD,6867950,42109,48578,1050,0,Invest in South Lakeland Business,Environmental Services,180000
South Lakeland District Council,http://opendatacommunities.org/id/district-council/south-lakeland,30/04/2015,Coronation Hall,Cultural Environmental Regulatory & Planning Services,http://opendatacommunities.org/def/concept/finance/sercop/objective/104,ST JOHN AMBULANCE CUMBRIA,,42109,48579,264,0,FAO,Consultancy,150000
South Lakeland District Council,http://opendatacommunities.org/id/district-council/south-lakeland,30/04/2015,Coronation Hall,Central Services,http://opendatacommunities.org/def/concept/finance/sercop/objective/102,OLTEC GROUP CLEANING & JANITORIAL SUPPLI,,42109,48580,99.6,0,Cleaning of Ulverston Town Hall up to 31,Consultancy,150000
South Lakeland District Council,http://opendatacommunities.org/id/district-council/south-lakeland,30/04/2015,Coronation Hall,Central Services,http://opendatacommunities.org/def/concept/finance/sercop/objective/102,OLTEC GROUP CLEANING & JANITORIAL SUPPLI,,42109,48581,99.6,0,Cleaning of Ulverston Town Hall up to 31,Consultancy,150000
South Lakeland District Council,http://opendatacommunities.org/id/district-council/south-lakeland,30/04/2015,Coronation Hall,Central Services,http://opendatacommunities.org/def/concept/finance/sercop/objective/102,OLTEC GROUP CLEANING & JANITORIAL SUPPLI,,42109,48582,99.6,0,Cleaning of Ulverston Town Hall up to 31,Consultancy,150000
South Lakeland District Council,http://opendatacommunities.org/id/district-council/south-lakeland,30/04/2015,Coronation Hall,Central Services,http://opendatacommunities.org/def/concept/finance/sercop/objective/102,OLTEC GROUP CLEANING & JANITORIAL SUPPLI,,42109,48583,99.6,0,Cleaning of Ulverston Town Hall up to 31,Consultancy,150000
South Lakeland District Council,http://opendatacommunities.org/id/district-council/south-lakeland,30/04/2015,Business Support Community Services,Internal Trading Accounts,,H WICKS (LINDAL) LTD,754590,42123,48584,1980.56,0,Paper handling - March (estimated),Environmental Services,180000
South Lakeland District Council,http://opendatacommunities.org/id/district-council/south-lakeland,30/04/2015,Technical Team,Cultural Environmental Regulatory & Planning Services,http://opendatacommunities.org/def/concept/finance/sercop/objective/104,Matchtech,2526418,42109,48585,655.2,0,TO SUPPLY CONTRACT 16,Consultancy,150000
South Lakeland District Council,http://opendatacommunities.org/id/district-council/south-lakeland,30/04/2015,Business Support Community Services,Cultural Environmental Regulatory & Planning Services,http://opendatacommunities.org/def/concept/finance/sercop/objective/104,GREEN BROTHERS SIGNS LTD,7433026,42114,48586,91,0,Hoad Terrace & Mayfield Road,Domestic Goods,160000
South Lakeland District Council,http://opendatacommunities.org/id/district-council/south-lakeland,30/04/2015,Social Enterprise Admin,SLDC as Agent,,PAY BY PHONE (PAYPOINT),,42109,48587,119.16,0,Pay-by-phone charges from 1 April 2014,Financial Services,200000
South Lakeland District Council,http://opendatacommunities.org/id/district-council/south-lakeland,30/04/2015,Business Support Community Services,Cultural Environmental Regulatory & Planning Services,http://opendatacommunities.org/def/concept/finance/sercop/objective/104,ARCO LIMITED,133804,42121,48594,17.88,0,Trainers,Furniture & Soft Furnishings,210000
South Lakeland District Council,http://opendatacommunities.org/id/district-council/south-lakeland,30/04/2015,Business Support Community Services,Transport Planning Policy,http://opendatacommunities.org/def/concept/finance/sercop/objective/107,ARCO LIMITED,133804,42121,48594,68.06,0,Trainers,Cleaning & Janitorial,130000
South Lakeland District Council,http://opendatacommunities.org/id/district-council/south-lakeland,30/04/2015,Business Support Community Services,Internal Trading Accounts,,ARCO LIMITED,133804,42121,48594,551.13,0,Trainers,Clothing,140000
South Lakeland District Council,http://opendatacommunities.org/id/district-council/south-lakeland,30/04/2015,Business Support Community Services,Internal Trading Accounts,,ARCO LIMITED,133804,42121,48594,0,0,Trainers,Clothing,140000
South Lakeland District Council,http://opendatacommunities.org/id/district-council/south-lakeland,30/04/2015,Printing Section,Central Services,http://opendatacommunities.org/def/concept/finance/sercop/objective/102,XEROX (UK) LIMITED,330754,42109,48595,38.89,0,Copy charge for Ulverson Town Hall,Stationery,340000
South Lakeland District Council,http://opendatacommunities.org/id/district-council/south-lakeland,30/04/2015,Business Support Community Services,Transport Planning Policy,http://opendatacommunities.org/def/concept/finance/sercop/objective/107,ARCO LIMITED,133804,42114,48596,4.76,0,Trainers,Cleaning & Janitorial,130000
South Lakeland District Council,http://opendatacommunities.org/id/district-council/south-lakeland,30/04/2015,Business Support Community Services,Housing Services,http://opendatacommunities.org/def/concept/finance/sercop/objective/108,ADECCO UK LIMITED,593232,42109,48597,102.7,0,Cleaner for Town View Fields,Consultancy,150000
South Lakeland District Council,http://opendatacommunities.org/id/district-council/south-lakeland,30/04/2015,Business Support Community Services,Internal Trading Accounts,,TAYLOR ENGINEERING & FABRICATIONS LTD,4989359,42121,48598,115.21,0,Bobbins,Vehicle Management,380000
South Lakeland District Council,http://opendatacommunities.org/id/district-council/south-lakeland,30/04/2015,Business Support Community Services,Internal Trading Accounts,,TAYLOR ENGINEERING & FABRICATIONS LTD,4989359,42121,48599,48.22,0,Filters,Vehicle Management,380000
South Lakeland District Council,http://opendatacommunities.org/id/district-council/south-lakeland,30/04/2015,Social Enterprise Admin,Cultural Environmental Regulatory & Planning Services,http://opendatacommunities.org/def/concept/finance/sercop/objective/104,HORSEMAT LTD,5738280,42114,48600,1805.5,0,60 1m x 1.5m x 22m Hollow Mats,Sports & Playground Equipment & Maintenance,330000
South Lakeland District Council,http://opendatacommunities.org/id/district-council/south-lakeland,30/04/2015,Democratic Services,Central Services,http://opendatacommunities.org/def/concept/finance/sercop/objective/102,MARCHESI CENTRE,,42109,48601,64,0,Room hire for 10 April 2015 Lake Admin,Arts & Leisure Services,290000
South Lakeland District Council,http://opendatacommunities.org/id/district-council/south-lakeland,30/04/2015,Policy & Partnerships,Cultural Environmental Regulatory & Planning Services,http://opendatacommunities.org/def/concept/finance/sercop/objective/104,GRANTS- MISCELLANEOUS,,42109,48602,1500,0,Help set up friends of 597 bus service,Financial Services,200000
South Lakeland District Council,http://opendatacommunities.org/id/district-council/south-lakeland,30/04/2015,Social Enterprise Admin,Cultural Environmental Regulatory & Planning Services,http://opendatacommunities.org/def/concept/finance/sercop/objective/104,CONTINENTAL LANDSCAPES LTD,2108452,42116,48604,5619.9,0,Extra Works for Cemeteries April 14-,Horticultural,240000
South Lakeland District Council,http://opendatacommunities.org/id/district-council/south-lakeland,30/04/2015,Social Enterprise Admin,Cultural Environmental Regulatory & Planning Services,http://opendatacommunities.org/def/concept/finance/sercop/objective/104,CONTINENTAL LANDSCAPES LTD,2108452,42116,48604,4706.26,0,Extra Works for Cemeteries April 14-,Horticultural,240000
South Lakeland District Council,http://opendatacommunities.org/id/district-council/south-lakeland,30/04/2015,Social Enterprise Admin,Cultural Environmental Regulatory & Planning Services,http://opendatacommunities.org/def/concept/finance/sercop/objective/104,CONTINENTAL LANDSCAPES LTD,2108452,42116,48604,1651.31,0,Extra Works for Cemeteries April 14-,Horticultural,240000
South Lakeland District Council,http://opendatacommunities.org/id/district-council/south-lakeland,30/04/2015,Social Enterprise Admin,Cultural Environmental Regulatory & Planning Services,http://opendatacommunities.org/def/concept/finance/sercop/objective/104,CONTINENTAL LANDSCAPES LTD,2108452,42116,48604,385.54,0,Extra Works for Cemeteries April 14-,Environmental Services,180000
South Lakeland District Council,http://opendatacommunities.org/id/district-council/south-lakeland,30/04/2015,Social Enterprise Admin,Highways & Transport Services,http://opendatacommunities.org/def/concept/finance/sercop/objective/107,CONTINENTAL LANDSCAPES LTD,2108452,42109,48605,11.89,0,Grounds maintenance 14-15,Horticultural,240000
South Lakeland District Council,http://opendatacommunities.org/id/district-council/south-lakeland,30/04/2015,Social Enterprise Admin,Highways & Transport Services,http://opendatacommunities.org/def/concept/finance/sercop/objective/107,CONTINENTAL LANDSCAPES LTD,2108452,42109,48605,11.89,0,Grounds maintenance 14-15,Horticultural,240000
South Lakeland District Council,http://opendatacommunities.org/id/district-council/south-lakeland,30/04/2015,Social Enterprise Admin,Highways & Transport Services,http://opendatacommunities.org/def/concept/finance/sercop/objective/107,CONTINENTAL LANDSCAPES LTD,2108452,42109,48605,1.19,0,Grounds maintenance 14-15,Horticultural,240000
South Lakeland District Council,http://opendatacommunities.org/id/district-council/south-lakeland,30/04/2015,Social Enterprise Admin,Highways & Transport Services,http://opendatacommunities.org/def/concept/finance/sercop/objective/107,CONTINENTAL LANDSCAPES LTD,2108452,42109,48605,11.89,0,Grounds maintenance 14-15,Horticultural,240000
South Lakeland District Council,http://opendatacommunities.org/id/district-council/south-lakeland,30/04/2015,Social Enterprise Admin,Highways & Transport Services,http://opendatacommunities.org/def/concept/finance/sercop/objective/107,CONTINENTAL LANDSCAPES LTD,2108452,42109,48605,11.89,0,Grounds maintenance 14-15,Horticultural,240000
South Lakeland District Council,http://opendatacommunities.org/id/district-council/south-lakeland,30/04/2015,Social Enterprise Admin,Highways & Transport Services,http://opendatacommunities.org/def/concept/finance/sercop/objective/107,CONTINENTAL LANDSCAPES LTD,2108452,42109,48605,11.89,0,Grounds maintenance 14-15,Horticultural,240000
South Lakeland District Council,http://opendatacommunities.org/id/district-council/south-lakeland,30/04/2015,Social Enterprise Admin,Highways & Transport Services,http://opendatacommunities.org/def/concept/finance/sercop/objective/107,CONTINENTAL LANDSCAPES LTD,2108452,42109,48605,35.67,0,Grounds maintenance 14-15,Horticultural,240000
South Lakeland District Council,http://opendatacommunities.org/id/district-council/south-lakeland,30/04/2015,Social Enterprise Admin,Highways & Transport Services,http://opendatacommunities.org/def/concept/finance/sercop/objective/107,CONTINENTAL LANDSCAPES LTD,2108452,42109,48605,237.8,0,Grounds maintenance 14-15,Horticultural,240000
South Lakeland District Council,http://opendatacommunities.org/id/district-council/south-lakeland,30/04/2015,Social Enterprise Admin,Highways & Transport Services,http://opendatacommunities.org/def/concept/finance/sercop/objective/107,CONTINENTAL LANDSCAPES LTD,2108452,42109,48605,148.62,0,Grounds maintenance 14-15,Horticultural,240000
South Lakeland District Council,http://opendatacommunities.org/id/district-council/south-lakeland,30/04/2015,Social Enterprise Admin,Highways & Transport Services,http://opendatacommunities.org/def/concept/finance/sercop/objective/107,CONTINENTAL LANDSCAPES LTD,2108452,42109,48605,5.94,0,Grounds maintenance 14-15,Horticultural,240000
South Lakeland District Council,http://opendatacommunities.org/id/district-council/south-lakeland,30/04/2015,Social Enterprise Admin,Highways & Transport Services,http://opendatacommunities.org/def/concept/finance/sercop/objective/107,CONTINENTAL LANDSCAPES LTD,2108452,42109,48605,59.45,0,Grounds maintenance 14-15,Horticultural,240000
South Lakeland District Council,http://opendatacommunities.org/id/district-council/south-lakeland,30/04/2015,Social Enterprise Admin,Highways & Transport Services,http://opendatacommunities.org/def/concept/finance/sercop/objective/107,CONTINENTAL LANDSCAPES LTD,2108452,42109,48605,59.45,0,Grounds maintenance 14-15,Horticultural,240000
South Lakeland District Council,http://opendatacommunities.org/id/district-council/south-lakeland,30/04/2015,Social Enterprise Admin,Highways & Transport Services,http://opendatacommunities.org/def/concept/finance/sercop/objective/107,CONTINENTAL LANDSCAPES LTD,2108452,42109,48605,118.9,0,Grounds maintenance 14-15,Horticultural,240000
South Lakeland District Council,http://opendatacommunities.org/id/district-council/south-lakeland,30/04/2015,Social Enterprise Admin,Highways & Transport Services,http://opendatacommunities.org/def/concept/finance/sercop/objective/107,CONTINENTAL LANDSCAPES LTD,2108452,42109,48605,47.56,0,Grounds maintenance 14-15,Horticultural,240000
South Lakeland District Council,http://opendatacommunities.org/id/district-council/south-lakeland,30/04/2015,Social Enterprise Admin,Highways & Transport Services,http://opendatacommunities.org/def/concept/finance/sercop/objective/107,CONTINENTAL LANDSCAPES LTD,2108452,42109,48605,5.94,0,Grounds maintenance 14-15,Horticultural,240000
South Lakeland District Council,http://opendatacommunities.org/id/district-council/south-lakeland,30/04/2015,Social Enterprise Admin,Highways & Transport Services,http://opendatacommunities.org/def/concept/finance/sercop/objective/107,CONTINENTAL LANDSCAPES LTD,2108452,42109,48605,5.94,0,Grounds maintenance 14-15,Horticultural,240000
South Lakeland District Council,http://opendatacommunities.org/id/district-council/south-lakeland,30/04/2015,Social Enterprise Admin,Highways & Transport Services,http://opendatacommunities.org/def/concept/finance/sercop/objective/107,CONTINENTAL LANDSCAPES LTD,2108452,42109,48605,2.97,0,Grounds maintenance 14-15,Horticultural,240000
South Lakeland District Council,http://opendatacommunities.org/id/district-council/south-lakeland,30/04/2015,Social Enterprise Admin,Highways & Transport Services,http://opendatacommunities.org/def/concept/finance/sercop/objective/107,CONTINENTAL LANDSCAPES LTD,2108452,42109,48605,59.45,0,Grounds maintenance 14-15,Horticultural,240000
South Lakeland District Council,http://opendatacommunities.org/id/district-council/south-lakeland,30/04/2015,Social Enterprise Admin,Highways & Transport Services,http://opendatacommunities.org/def/concept/finance/sercop/objective/107,CONTINENTAL LANDSCAPES LTD,2108452,42109,48605,53.5,0,Grounds maintenance 14-15,Horticultural,240000
South Lakeland District Council,http://opendatacommunities.org/id/district-council/south-lakeland,30/04/2015,Social Enterprise Admin,Highways & Transport Services,http://opendatacommunities.org/def/concept/finance/sercop/objective/107,CONTINENTAL LANDSCAPES LTD,2108452,42109,48605,65.39,0,Grounds maintenance 14-15,Horticultural,240000
South Lakeland District Council,http://opendatacommunities.org/id/district-council/south-lakeland,30/04/2015,Social Enterprise Admin,Highways & Transport Services,http://opendatacommunities.org/def/concept/finance/sercop/objective/107,CONTINENTAL LANDSCAPES LTD,2108452,42109,48605,124.84,0,Grounds maintenance 14-15,Horticultural,240000
South Lakeland District Council,http://opendatacommunities.org/id/district-council/south-lakeland,30/04/2015,Social Enterprise Admin,Highways & Transport Services,http://opendatacommunities.org/def/concept/finance/sercop/objective/107,CONTINENTAL LANDSCAPES LTD,2108452,42109,48605,118.9,0,Grounds maintenance 14-15,Horticultural,240000
South Lakeland District Council,http://opendatacommunities.org/id/district-council/south-lakeland,30/04/2015,Social Enterprise Admin,Highways & Transport Services,http://opendatacommunities.org/def/concept/finance/sercop/objective/107,CONTINENTAL LANDSCAPES LTD,2108452,42109,48605,11.89,0,Grounds maintenance 14-15,Horticultural,240000
South Lakeland District Council,http://opendatacommunities.org/id/district-council/south-lakeland,30/04/2015,Social Enterprise Admin,Highways & Transport Services,http://opendatacommunities.org/def/concept/finance/sercop/objective/107,CONTINENTAL LANDSCAPES LTD,2108452,42109,48605,11.89,0,Grounds maintenance 14-15,Horticultural,240000
South Lakeland District Council,http://opendatacommunities.org/id/district-council/south-lakeland,30/04/2015,Social Enterprise Admin,Highways & Transport Services,http://opendatacommunities.org/def/concept/finance/sercop/objective/107,CONTINENTAL LANDSCAPES LTD,2108452,42109,48605,35.67,0,Grounds maintenance 14-15,Horticultural,240000
South Lakeland District Council,http://opendatacommunities.org/id/district-council/south-lakeland,30/04/2015,Social Enterprise Admin,Highways & Transport Services,http://opendatacommunities.org/def/concept/finance/sercop/objective/107,CONTINENTAL LANDSCAPES LTD,2108452,42109,48605,59.45,0,Grounds maintenance 14-15,Horticultural,240000
South Lakeland District Council,http://opendatacommunities.org/id/district-council/south-lakeland,30/04/2015,Social Enterprise Admin,Highways & Transport Services,http://opendatacommunities.org/def/concept/finance/sercop/objective/107,CONTINENTAL LANDSCAPES LTD,2108452,42109,48605,105.76,0,Grounds maintenance 14-15,Horticultural,240000
South Lakeland District Council,http://opendatacommunities.org/id/district-council/south-lakeland,30/04/2015,Social Enterprise Admin,Highways & Transport Services,http://opendatacommunities.org/def/concept/finance/sercop/objective/107,CONTINENTAL LANDSCAPES LTD,2108452,42109,48605,118.9,0,Grounds maintenance 14-15,Horticultural,240000
South Lakeland District Council,http://opendatacommunities.org/id/district-council/south-lakeland,30/04/2015,Social Enterprise Admin,Highways & Transport Services,http://opendatacommunities.org/def/concept/finance/sercop/objective/107,CONTINENTAL LANDSCAPES LTD,2108452,42109,48605,219.96,0,Grounds maintenance 14-15,Horticultural,240000
South Lakeland District Council,http://opendatacommunities.org/id/district-council/south-lakeland,30/04/2015,Social Enterprise Admin,Highways & Transport Services,http://opendatacommunities.org/def/concept/finance/sercop/objective/107,CONTINENTAL LANDSCAPES LTD,2108452,42109,48605,118.9,0,Grounds maintenance 14-15,Horticultural,240000
South Lakeland District Council,http://opendatacommunities.org/id/district-council/south-lakeland,30/04/2015,Social Enterprise Admin,Highways & Transport Services,http://opendatacommunities.org/def/concept/finance/sercop/objective/107,CONTINENTAL LANDSCAPES LTD,2108452,42109,48605,178.35,0,Grounds maintenance 14-15,Horticultural,240000
South Lakeland District Council,http://opendatacommunities.org/id/district-council/south-lakeland,30/04/2015,Social Enterprise Admin,Cultural Environmental Regulatory & Planning Services,http://opendatacommunities.org/def/concept/finance/sercop/objective/104,CONTINENTAL LANDSCAPES LTD,2108452,42109,48605,9511.8,0,Grounds maintenance 14-15,Horticultural,240000
South Lakeland District Council,http://opendatacommunities.org/id/district-council/south-lakeland,30/04/2015,Social Enterprise Admin,Cultural Environmental Regulatory & Planning Services,http://opendatacommunities.org/def/concept/finance/sercop/objective/104,CONTINENTAL LANDSCAPES LTD,2108452,42109,48605,1376.6,0,Grounds maintenance 14-15,Cemetery & Crematorium,120000
South Lakeland District Council,http://opendatacommunities.org/id/district-council/south-lakeland,30/04/2015,Social Enterprise Admin,Cultural Environmental Regulatory & Planning Services,http://opendatacommunities.org/def/concept/finance/sercop/objective/104,CONTINENTAL LANDSCAPES LTD,2108452,42109,48605,23.78,0,Grounds maintenance 14-15,Horticultural,240000
South Lakeland District Council,http://opendatacommunities.org/id/district-council/south-lakeland,30/04/2015,Social Enterprise Admin,Cultural Environmental Regulatory & Planning Services,http://opendatacommunities.org/def/concept/finance/sercop/objective/104,CONTINENTAL LANDSCAPES LTD,2108452,42109,48605,45478.3,0,Grounds maintenance 14-15,Horticultural,240000
South Lakeland District Council,http://opendatacommunities.org/id/district-council/south-lakeland,30/04/2015,Social Enterprise Admin,Cultural Environmental Regulatory & Planning Services,http://opendatacommunities.org/def/concept/finance/sercop/objective/104,CONTINENTAL LANDSCAPES LTD,2108452,42109,48605,2259.05,0,Grounds maintenance 14-15,Horticultural,240000
South Lakeland District Council,http://opendatacommunities.org/id/district-council/south-lakeland,30/04/2015,Social Enterprise Admin,External Trading Accounts,,CONTINENTAL LANDSCAPES LTD,2108452,42109,48605,104.04,0,Grounds maintenance 14-15,Horticultural,240000
South Lakeland District Council,http://opendatacommunities.org/id/district-council/south-lakeland,30/04/2015,Social Enterprise Admin,Cultural Environmental Regulatory & Planning Services,http://opendatacommunities.org/def/concept/finance/sercop/objective/104,CONTINENTAL LANDSCAPES LTD,2108452,42109,48606,20000,0,V2 Savings works across the district to,Horticultural,240000
South Lakeland District Council,http://opendatacommunities.org/id/district-council/south-lakeland,30/04/2015,ICT Group,Central Services,http://opendatacommunities.org/def/concept/finance/sercop/objective/102,THE DOCUMENT MANAGEMENT GROUP LTD,5210023,42109,48607,2635.41,0,Fujitsu FI5900C support and maintenance,Financial Services,200000
South Lakeland District Council,http://opendatacommunities.org/id/district-council/south-lakeland,30/04/2015,Business Support Community Services,Internal Trading Accounts,,HAKO MACHINES LIMITED,1414225,42109,48608,149.86,0,Jets,Vehicle Management,380000
South Lakeland District Council,http://opendatacommunities.org/id/district-council/south-lakeland,30/04/2015,Business Support Community Services,Internal Trading Accounts,,JOHNSTON SWEEPERS LTD,199841,42109,48609,726.18,0,Cam view,Vehicle Management,380000
South Lakeland District Council,http://opendatacommunities.org/id/district-council/south-lakeland,30/04/2015,Revenues and Benefits,SLDC as Agent,,ROYAL MAIL GROUP PLC,,42109,48610,2022.37,0,2015-2016 Postal Charges a/c 0198123013,Financial Services,200000
South Lakeland District Council,http://opendatacommunities.org/id/district-council/south-lakeland,30/04/2015,Business Support Community Services,Housing Services,http://opendatacommunities.org/def/concept/finance/sercop/objective/108,H Jenkinson & Company Ltd,169844,42109,48611,5048,0,Table 1200X600 Laminate Beech  A137/126,Furniture & Soft Furnishings,210000
South Lakeland District Council,http://opendatacommunities.org/id/district-council/south-lakeland,30/04/2015,Social Enterprise Admin,Highways & Transport Services,http://opendatacommunities.org/def/concept/finance/sercop/objective/107,DIXON PRINTING CO LTD,,42109,48612,114,0,"Please print 1000 DL envelopes, with",Stationery,340000
South Lakeland District Council,http://opendatacommunities.org/id/district-council/south-lakeland,30/04/2015,Social Enterprise Admin,Highways & Transport Services,http://opendatacommunities.org/def/concept/finance/sercop/objective/107,PATROL,,42109,48613,725,0,Charges for Traffic Penalty Tribunal,Financial Services,200000
South Lakeland District Council,http://opendatacommunities.org/id/district-council/south-lakeland,30/04/2015,Social Enterprise Admin,Highways & Transport Services,http://opendatacommunities.org/def/concept/finance/sercop/objective/107,G4S SECURE SOLUTIONS (UK) LTD,1046019,42109,48614,874.84,0,Patrol Services for South Lakeland House,Consultancy,150000
South Lakeland District Council,http://opendatacommunities.org/id/district-council/south-lakeland,30/04/2015,Lake Wardens,Cultural Environmental Regulatory & Planning Services,http://opendatacommunities.org/def/concept/finance/sercop/objective/104,JONATHAN B JACKSON LTD,7762503,42109,48615,2200,0,Annual Survey of Hire Craft within,Consultancy,150000
South Lakeland District Council,http://opendatacommunities.org/id/district-council/south-lakeland,30/04/2015,Coronation Hall,External Trading Accounts,,Morson International,,42109,48616,99.4,0,Ulverston Market Hall cleaner from April,Consultancy,150000
South Lakeland District Council,http://opendatacommunities.org/id/district-council/south-lakeland,30/04/2015,Business Support Community Services,Housing Services,http://opendatacommunities.org/def/concept/finance/sercop/objective/108,BUNZL CLEANING & HYGIENE SUPPLIES,2902454,42109,48617,263.01,0,8557 Scott Folded Toilet Tissue,Cleaning & Janitorial,130000
South Lakeland District Council,http://opendatacommunities.org/id/district-council/south-lakeland,30/04/2015,Electoral Services,Central Services,http://opendatacommunities.org/def/concept/finance/sercop/objective/102,Central Tools & Pressings Ltd,,42109,48618,1160,0,40 Ballot Boxes with Metal Lids,,
South Lakeland District Council,http://opendatacommunities.org/id/district-council/south-lakeland,30/04/2015,Electoral Services,Central Services,http://opendatacommunities.org/def/concept/finance/sercop/objective/102,Zest Publication Ltd,,42109,48619,37.5,0,Advert in April Edition of Local Choice,Facilities & Management Services,190000
South Lakeland District Council,http://opendatacommunities.org/id/district-council/south-lakeland,30/04/2015,Electoral Services,Central Services,http://opendatacommunities.org/def/concept/finance/sercop/objective/102,Zest Publication Ltd,,42109,48619,37.5,0,Advert in April Edition of Local Choice,Facilities & Management Services,190000
South Lakeland District Council,http://opendatacommunities.org/id/district-council/south-lakeland,30/04/2015,Electoral Services,Central Services,http://opendatacommunities.org/def/concept/finance/sercop/objective/102,Zest Publication Ltd,,42109,48619,75,0,Advert in April Edition of Local Choice,Facilities & Management Services,190000
South Lakeland District Council,http://opendatacommunities.org/id/district-council/south-lakeland,30/04/2015,ICT Group,Central Services,http://opendatacommunities.org/def/concept/finance/sercop/objective/102,CABLE & WIRELESS UK (VODAFONE),,42109,48620,2914.05,0,Gsi Convergence Framework,Information Communication Technology,270000
South Lakeland District Council,http://opendatacommunities.org/id/district-council/south-lakeland,30/04/2015,Policy & Partnerships,Cultural Environmental Regulatory & Planning Services,http://opendatacommunities.org/def/concept/finance/sercop/objective/104,GRANTS- MISCELLANEOUS,,42114,48621,495.7,0,fund splashbacks for the kitchen 99.14,Financial Services,200000
South Lakeland District Council,http://opendatacommunities.org/id/district-council/south-lakeland,30/04/2015,Human Resources,Central Services,http://opendatacommunities.org/def/concept/finance/sercop/objective/102,OH Acquisitions Ltd,7365943,42109,48622,685.5,0,Pre-employment check Fiona Inston,Healthcare,310000
South Lakeland District Council,http://opendatacommunities.org/id/district-council/south-lakeland,30/04/2015,Business Support Community Services,Housing Services,http://opendatacommunities.org/def/concept/finance/sercop/objective/108,Landlord,8672920,42109,48623,400,0,Monthly rent ,Social Community Care Supplies & Services,410000
South Lakeland District Council,http://opendatacommunities.org/id/district-council/south-lakeland,30/04/2015,Business Support Community Services,Housing Services,http://opendatacommunities.org/def/concept/finance/sercop/objective/108,Landlord,,42109,48624,520,0,Monthly rent ,Social Community Care Supplies & Services,410000
South Lakeland District Council,http://opendatacommunities.org/id/district-council/south-lakeland,30/04/2015,Business Support Community Services,Housing Services,http://opendatacommunities.org/def/concept/finance/sercop/objective/108,Landlord,,42109,48625,890,0,Monthly rent ,Social Community Care Supplies & Services,410000
South Lakeland District Council,http://opendatacommunities.org/id/district-council/south-lakeland,30/04/2015,Financial Services,SLDC as Agent,,LAKELAND ESTATES (AMBLESIDE) LTD,3022544,42109,48626,10020.8,0,14/15 Millerfield Car Park Income,Financial Services,200000
South Lakeland District Council,http://opendatacommunities.org/id/district-council/south-lakeland,30/04/2015,Financial Services,Central Services,http://opendatacommunities.org/def/concept/finance/sercop/objective/102,DAISY COMMUNICATIONS LTD,4145329,42121,48636,1.8,0,Calls and Services Daisy Jan to March,Information Communication Technology,270000
South Lakeland District Council,http://opendatacommunities.org/id/district-council/south-lakeland,30/04/2015,Financial Services,Central Services,http://opendatacommunities.org/def/concept/finance/sercop/objective/102,DAISY COMMUNICATIONS LTD,4145329,42121,48636,49.01,0,Calls and Services Daisy Jan to March,Information Communication Technology,270000
South Lakeland District Council,http://opendatacommunities.org/id/district-council/south-lakeland,30/04/2015,Financial Services,Central Services,http://opendatacommunities.org/def/concept/finance/sercop/objective/102,DAISY COMMUNICATIONS LTD,4145329,42121,48636,106.28,0,Calls and Services Daisy Jan to March,Information Communication Technology,270000
South Lakeland District Council,http://opendatacommunities.org/id/district-council/south-lakeland,30/04/2015,Financial Services,Highways & Transport Services,http://opendatacommunities.org/def/concept/finance/sercop/objective/107,DAISY COMMUNICATIONS LTD,4145329,42121,48636,11.65,0,Calls and Services Daisy Jan to March,Information Communication Technology,270000
South Lakeland District Council,http://opendatacommunities.org/id/district-council/south-lakeland,30/04/2015,Financial Services,Transport Planning Policy,http://opendatacommunities.org/def/concept/finance/sercop/objective/107,DAISY COMMUNICATIONS LTD,4145329,42121,48636,23.3,0,Calls and Services Daisy Jan to March,Information Communication Technology,270000
South Lakeland District Council,http://opendatacommunities.org/id/district-council/south-lakeland,30/04/2015,Financial Services,Transport Planning Policy,http://opendatacommunities.org/def/concept/finance/sercop/objective/107,DAISY COMMUNICATIONS LTD,4145329,42121,48636,39.17,0,Calls and Services Daisy Jan to March,Information Communication Technology,270000
South Lakeland District Council,http://opendatacommunities.org/id/district-council/south-lakeland,30/04/2015,Financial Services,Cultural Environmental Regulatory & Planning Services,http://opendatacommunities.org/def/concept/finance/sercop/objective/104,DAISY COMMUNICATIONS LTD,4145329,42121,48636,23.3,0,Calls and Services Daisy Jan to March,Information Communication Technology,270000
South Lakeland District Council,http://opendatacommunities.org/id/district-council/south-lakeland,30/04/2015,Financial Services,Housing Services,http://opendatacommunities.org/def/concept/finance/sercop/objective/108,DAISY COMMUNICATIONS LTD,4145329,42121,48636,40.92,0,Calls and Services Daisy Jan to March,Information Communication Technology,270000
South Lakeland District Council,http://opendatacommunities.org/id/district-council/south-lakeland,30/04/2015,Financial Services,External Trading Accounts,,DAISY COMMUNICATIONS LTD,4145329,42121,48636,37.19,0,Calls and Services Daisy Jan to March,Information Communication Technology,270000
South Lakeland District Council,http://opendatacommunities.org/id/district-council/south-lakeland,30/04/2015,Financial Services,Cultural Environmental Regulatory & Planning Services,http://opendatacommunities.org/def/concept/finance/sercop/objective/104,DAISY COMMUNICATIONS LTD,4145329,42121,48636,41.21,0,Calls and Services Daisy Jan to March,Information Communication Technology,270000
South Lakeland District Council,http://opendatacommunities.org/id/district-council/south-lakeland,30/04/2015,Financial Services,Cultural Environmental Regulatory & Planning Services,http://opendatacommunities.org/def/concept/finance/sercop/objective/104,DAISY COMMUNICATIONS LTD,4145329,42121,48636,110.86,0,Calls and Services Daisy Jan to March,Information Communication Technology,270000
South Lakeland District Council,http://opendatacommunities.org/id/district-council/south-lakeland,30/04/2015,Financial Services,SLDC as Agent,,DAISY COMMUNICATIONS LTD,4145329,42121,48636,58.16,0,Calls and Services Daisy Jan to March,Financial Services,200000
South Lakeland District Council,http://opendatacommunities.org/id/district-council/south-lakeland,30/04/2015,Financial Services,SLDC as Agent,,DAISY COMMUNICATIONS LTD,4145329,42121,48636,29.97,0,Calls and Services Daisy Jan to March,Financial Services,200000
South Lakeland District Council,http://opendatacommunities.org/id/district-council/south-lakeland,30/04/2015,Financial Services,SLDC as Agent,,E H BOOTH & CO LTD,,42109,48638,92890.38,0,Booths Kendal,Financial Services,200000
South Lakeland District Council,http://opendatacommunities.org/id/district-council/south-lakeland,30/04/2015,Financial Services,SLDC as Agent,,E H BOOTH & CO LTD,,42109,48638,9836.08,0,Booths Kendal,Financial Services,200000
South Lakeland District Council,http://opendatacommunities.org/id/district-council/south-lakeland,30/04/2015,Financial Services,SLDC as Agent,,E H BOOTH & CO LTD,,42109,48638,34351.61,0,Booths Kendal,Financial Services,200000
South Lakeland District Council,http://opendatacommunities.org/id/district-council/south-lakeland,30/04/2015,Kendal Town Hall,Central Services,http://opendatacommunities.org/def/concept/finance/sercop/objective/102,BERENDSEN UK LTD,228604,42114,48639,64.87,0,Rental and weekly replacement of the 2,Cleaning & Janitorial,130000
South Lakeland District Council,http://opendatacommunities.org/id/district-council/south-lakeland,30/04/2015,Kendal Town Hall,Cultural Environmental Regulatory & Planning Services,http://opendatacommunities.org/def/concept/finance/sercop/objective/104,BERENDSEN UK LTD,228604,42114,48639,26.09,0,Rental and weekly replacement of the 2,Cleaning & Janitorial,130000
South Lakeland District Council,http://opendatacommunities.org/id/district-council/south-lakeland,30/04/2015,Business Support Community Services,Internal Trading Accounts,,STAGECOACH NORTHWEST,,42114,48640,150,0,Steam cleaning 01/04/15 - 31/03/16,Vehicle Management,380000
South Lakeland District Council,http://opendatacommunities.org/id/district-council/south-lakeland,30/04/2015,Business Support Community Services,Internal Trading Accounts,,Masterstaff Limited,2777593,42114,48641,637.2,0,S B,Consultancy,150000
South Lakeland District Council,http://opendatacommunities.org/id/district-council/south-lakeland,30/04/2015,Business Support Community Services,Internal Trading Accounts,,HAKO MACHINES LIMITED,1414225,42114,48642,68.22,0,Pins,Vehicle Management,380000
South Lakeland District Council,http://opendatacommunities.org/id/district-council/south-lakeland,30/04/2015,Social Enterprise Admin,Central Services,http://opendatacommunities.org/def/concept/finance/sercop/objective/102,Southerns Office Interiors Ltd,3478080,42114,48643,151.2,0,Icon Plus Task Chair with height,Furniture & Soft Furnishings,210000
South Lakeland District Council,http://opendatacommunities.org/id/district-council/south-lakeland,30/04/2015,Lake Wardens,Cultural Environmental Regulatory & Planning Services,http://opendatacommunities.org/def/concept/finance/sercop/objective/104,SMS (SALCOMBE) LTD,4558962,42116,48644,87.6,0,1 x 6ft Throttle Cable,Vehicle Management,380000
South Lakeland District Council,http://opendatacommunities.org/id/district-council/south-lakeland,30/04/2015,Business Support Community Services,Internal Trading Accounts,,BPI RECYCLED PRODUCTS,350729,42114,48646,5191.1,0,Black liners - 455x785x990 50/F 400/PK,Cleaning & Janitorial,130000
South Lakeland District Council,http://opendatacommunities.org/id/district-council/south-lakeland,30/04/2015,Revenues and Benefits,Central Services,http://opendatacommunities.org/def/concept/finance/sercop/objective/102,VENN GROUP RECRUITMENT SOLUTIONS,,42114,48647,869.5,0,Consultant,Consultancy,150000
South Lakeland District Council,http://opendatacommunities.org/id/district-council/south-lakeland,30/04/2015,Business Support Community Services,Internal Trading Accounts,,AINSWORTH'S GARAGE,,42114,48648,255,0,Recover SL024,Vehicle Management,380000
South Lakeland District Council,http://opendatacommunities.org/id/district-council/south-lakeland,30/04/2015,Printing Section,Central Services,http://opendatacommunities.org/def/concept/finance/sercop/objective/102,Konica Minolta Bus Solutions (UK) Ltd,,42114,48650,3946.4,0,Clicks charges for Konica printers 6,Stationery,340000
South Lakeland District Council,http://opendatacommunities.org/id/district-council/south-lakeland,30/04/2015,Human Resources,Central Services,http://opendatacommunities.org/def/concept/finance/sercop/objective/102,RyderMarshSharman Ltd,3475361,42114,48651,6300,0,Health and Safety Culture Audit for,Health & Safety,220000
South Lakeland District Council,http://opendatacommunities.org/id/district-council/south-lakeland,30/04/2015,Development Implementation,Cultural Environmental Regulatory & Planning Services,http://opendatacommunities.org/def/concept/finance/sercop/objective/104,LAKELAND ARTS,8162578,42114,48652,550,0,Participation in the Kendal Courtesy,Financial Services,200000
South Lakeland District Council,http://opendatacommunities.org/id/district-council/south-lakeland,30/04/2015,Social Enterprise Admin,Cultural Environmental Regulatory & Planning Services,http://opendatacommunities.org/def/concept/finance/sercop/objective/104,THE NATIONAL TRUST,,42114,48653,2650,0,rent Millerground Sailing Base  1/4/15 -,Housing Management,250000
South Lakeland District Council,http://opendatacommunities.org/id/district-council/south-lakeland,30/04/2015,Environmental Protection,Cultural Environmental Regulatory & Planning Services,http://opendatacommunities.org/def/concept/finance/sercop/objective/104,CONTINENTAL LANDSCAPES LTD,2108452,42114,48654,3582.38,0,Covering 12monthly payments for,Cemetery & Crematorium,120000
South Lakeland District Council,http://opendatacommunities.org/id/district-council/south-lakeland,30/04/2015,Social Enterprise Admin,Highways & Transport Services,http://opendatacommunities.org/def/concept/finance/sercop/objective/107,THE SIGN MAN,5748839,42114,48655,95,0,Additional tariff to be added to the,Street & Traffic Management,350000
South Lakeland District Council,http://opendatacommunities.org/id/district-council/south-lakeland,30/04/2015,Business Support Community Services,Housing Services,http://opendatacommunities.org/def/concept/finance/sercop/objective/108,James Andrews Recruitment Solutions,6834852,42114,48656,681.25,0,Payment for  - Housing,Consultancy,150000
South Lakeland District Council,http://opendatacommunities.org/id/district-council/south-lakeland,30/04/2015,Revenues and Benefits,Central Services,http://opendatacommunities.org/def/concept/finance/sercop/objective/102,IRRV SERVICES,,42114,48657,787.5,0,IRRV Forum Service,Education,170000
South Lakeland District Council,http://opendatacommunities.org/id/district-council/south-lakeland,30/04/2015,Environment and Housing,Housing Services,http://opendatacommunities.org/def/concept/finance/sercop/objective/108,EMPTY HOMES NETWORK,,42114,48658,149,0,Empty Homes Network annual conference,Education,170000
South Lakeland District Council,http://opendatacommunities.org/id/district-council/south-lakeland,30/04/2015,Printing Section,Central Services,http://opendatacommunities.org/def/concept/finance/sercop/objective/102,ROSEFOX PAPER LIMITED,1655083,42114,48659,147.9,0,Cream A4 80gsm,Stationery,340000
South Lakeland District Council,http://opendatacommunities.org/id/district-council/south-lakeland,30/04/2015,Printing Section,Central Services,http://opendatacommunities.org/def/concept/finance/sercop/objective/102,ROSEFOX PAPER LIMITED,1655083,42114,48660,91.31,0,Conqueror A4 120gsm High White Wove,Stationery,340000
South Lakeland District Council,http://opendatacommunities.org/id/district-council/south-lakeland,30/04/2015,Social Enterprise Admin,Cultural Environmental Regulatory & Planning Services,http://opendatacommunities.org/def/concept/finance/sercop/objective/104,URBANVISION PARTNERSHIP LTD,,42114,48661,6434.55,0,BUSINESS DEVELOPMENT AND PROJECT,Consultancy,150000
South Lakeland District Council,http://opendatacommunities.org/id/district-council/south-lakeland,30/04/2015,ICT Group,Central Services,http://opendatacommunities.org/def/concept/finance/sercop/objective/102,IT PROFESSIONAL SERVICES (ITPS),,42121,48663,200,0,SSL Certificate for,Information Communication Technology,270000
South Lakeland District Council,http://opendatacommunities.org/id/district-council/south-lakeland,30/04/2015,Business Support Community Services,Central Services,http://opendatacommunities.org/def/concept/finance/sercop/objective/102,ARCO LIMITED,133804,42114,48664,49,0,Trainers,Clothing,140000
South Lakeland District Council,http://opendatacommunities.org/id/district-council/south-lakeland,30/04/2015,Business Support Community Services,Central Services,http://opendatacommunities.org/def/concept/finance/sercop/objective/102,ARCO LIMITED,133804,42114,48665,39.25,0,Trainers,Clothing,140000
South Lakeland District Council,http://opendatacommunities.org/id/district-council/south-lakeland,30/04/2015,Business Support Community Services,Internal Trading Accounts,,M G D LTD,,42114,48670,35,0,MOTs 01/04/15 - 31/03/16,Vehicle Management,380000
South Lakeland District Council,http://opendatacommunities.org/id/district-council/south-lakeland,30/04/2015,Business Support Community Services,Internal Trading Accounts,,CUMBRIA TRUCK CENTRE LTD,4298488,42114,48671,503.99,0,Spring,Vehicle Management,380000
South Lakeland District Council,http://opendatacommunities.org/id/district-council/south-lakeland,30/04/2015,Development Implementation,Central Services,http://opendatacommunities.org/def/concept/finance/sercop/objective/102,NPS GROUP LTD,6614601,42114,48672,1250,0,NLR Depot Development,"Works - Construction, Repair & Maintenance",390000
South Lakeland District Council,http://opendatacommunities.org/id/district-council/south-lakeland,30/04/2015,Development Implementation,Central Services,http://opendatacommunities.org/def/concept/finance/sercop/objective/102,NPS GROUP LTD,6614601,42114,48673,408,0,supervisory work for new contact centre,Financial Services,200000
South Lakeland District Council,http://opendatacommunities.org/id/district-council/south-lakeland,30/04/2015,Human Resources,Central Services,http://opendatacommunities.org/def/concept/finance/sercop/objective/102,Brown & Murray Solicitors,5341311,42114,48674,250,0,Settlement agreement,Legal Services,280000
South Lakeland District Council,http://opendatacommunities.org/id/district-council/south-lakeland,30/04/2015,Business Support Community Services,Cultural Environmental Regulatory & Planning Services,http://opendatacommunities.org/def/concept/finance/sercop/objective/104,ALLSTAR BUSINESS SOLUTIONS LTD (NCR),2631112,42095,48675,33.33,0,Fuel - 18 March 2015 - Private Water Van,Environmental Services,180000
South Lakeland District Council,http://opendatacommunities.org/id/district-council/south-lakeland,30/04/2015,Social Enterprise Admin,Transport,http://opendatacommunities.org/def/concept/finance/sercop/objective/107,R G PARKINS & PARTNERS LTD,4107150,42114,48696,899,0,Westmorland SC car park - professional,Financial Services,200000
South Lakeland District Council,http://opendatacommunities.org/id/district-council/south-lakeland,30/04/2015,Development Implementation,Central Services,http://opendatacommunities.org/def/concept/finance/sercop/objective/102,NPS GROUP LTD,6614601,42114,48697,38333.33,0,Professional Property Services for,"Works - Construction, Repair & Maintenance",390000
South Lakeland District Council,http://opendatacommunities.org/id/district-council/south-lakeland,30/04/2015,Development Implementation,Central Services,http://opendatacommunities.org/def/concept/finance/sercop/objective/102,NPS GROUP LTD,6614601,42114,48698,180,0,Depot Car Parking Feasibility,"Works - Construction, Repair & Maintenance",390000
South Lakeland District Council,http://opendatacommunities.org/id/district-council/south-lakeland,30/04/2015,Development Implementation,Culture and Related Serv,http://opendatacommunities.org/def/concept/finance/sercop/objective/104,NPS GROUP LTD,6614601,42114,48699,950,0,CDM Works for Castle Dairy,Financial Services,200000
South Lakeland District Council,http://opendatacommunities.org/id/district-council/south-lakeland,30/04/2015,Development Implementation,Planning and Development,,NPS GROUP LTD,6614601,42114,48700,11989,0,Fees for 124 Highgate,Financial Services,200000
South Lakeland District Council,http://opendatacommunities.org/id/district-council/south-lakeland,30/04/2015,Development Implementation,Cultural Environmental Regulatory & Planning Services,http://opendatacommunities.org/def/concept/finance/sercop/objective/104,NPS GROUP LTD,6614601,42114,48701,3350,0,Grange over Sands - Lido Sustainability,Financial Services,200000
South Lakeland District Council,http://opendatacommunities.org/id/district-council/south-lakeland,30/04/2015,Development Implementation,Central Services,http://opendatacommunities.org/def/concept/finance/sercop/objective/102,NPS GROUP LTD,6614601,42114,48702,600,0,Coronation Hall UTC Options,"Works - Construction, Repair & Maintenance",390000
South Lakeland District Council,http://opendatacommunities.org/id/district-council/south-lakeland,30/04/2015,Business Support Community Services,Internal Trading Accounts,,GARWOOD EUROPE LTD,4333504,42114,48703,297.96,0,Switch,Vehicle Management,380000
South Lakeland District Council,http://opendatacommunities.org/id/district-council/south-lakeland,30/04/2015,Development Implementation,Central Services,http://opendatacommunities.org/def/concept/finance/sercop/objective/102,NPS GROUP LTD,6614601,42114,48709,1103.5,0,3 EPCs for PV panels,"Works - Construction, Repair & Maintenance",390000
South Lakeland District Council,http://opendatacommunities.org/id/district-council/south-lakeland,30/04/2015,Social Enterprise Admin,Cultural Environmental Regulatory & Planning Services,http://opendatacommunities.org/def/concept/finance/sercop/objective/104,Cleartrack (EvL) Ltd,3881690,42114,48710,750,0,Biskey Howe Windermere,Environmental Services,180000
South Lakeland District Council,http://opendatacommunities.org/id/district-council/south-lakeland,30/04/2015,Social Enterprise Admin,Cultural Environmental Regulatory & Planning Services,http://opendatacommunities.org/def/concept/finance/sercop/objective/104,Cleartrack (EvL) Ltd,3881690,42114,48711,200,0,Biskey Howe Windermere,Environmental Services,180000
South Lakeland District Council,http://opendatacommunities.org/id/district-council/south-lakeland,30/04/2015,Financial Services,SLDC as Agent,,KIRKLAND TRUST (KENDAL),,42114,48712,4521.5,0,14/15 Kirkland Car Park Income,Financial Services,200000
South Lakeland District Council,http://opendatacommunities.org/id/district-council/south-lakeland,30/04/2015,Business Support Community Services,Central Services,http://opendatacommunities.org/def/concept/finance/sercop/objective/102,Romaquip Ltd,,42114,48713,130000,0,Per specification V14/03,Vehicle Management,380000
South Lakeland District Council,http://opendatacommunities.org/id/district-council/south-lakeland,30/04/2015,Development Implementation,Cultural Environmental Regulatory & Planning Services,http://opendatacommunities.org/def/concept/finance/sercop/objective/104,Charlie's Cafe Bar Ltd,4757080,42121,48715,550,0,Participation in the Kendal Courtesy,Financial Services,200000
South Lakeland District Council,http://opendatacommunities.org/id/district-council/south-lakeland,30/04/2015,Business Support Community Services,Internal Trading Accounts,,BRIAN ARMISTEAD LTD T/A SINKFALL RECYCLI,4133280,42121,48716,1162.4,0,Green waste tipping - 2015/16,Environmental Services,180000
South Lakeland District Council,http://opendatacommunities.org/id/district-council/south-lakeland,30/04/2015,Business Support Community Services,Cultural Environmental Regulatory & Planning Services,http://opendatacommunities.org/def/concept/finance/sercop/objective/104,Public Health England,,42114,48718,150.36,0,Microbiological examination of samples,Environmental Services,180000
South Lakeland District Council,http://opendatacommunities.org/id/district-council/south-lakeland,30/04/2015,Environmental Protection,Cultural Environmental Regulatory & Planning Services,http://opendatacommunities.org/def/concept/finance/sercop/objective/104,COOPER ENGRAVING,,42114,48719,31,0,Replacement plaque Thomas FINDLOW in,Horticultural,240000
South Lakeland District Council,http://opendatacommunities.org/id/district-council/south-lakeland,30/04/2015,Revenues and Benefits,Central Services,http://opendatacommunities.org/def/concept/finance/sercop/objective/102,VENN GROUP RECRUITMENT SOLUTIONS,,42114,48721,934.13,0,April 2015 Vicky McDonald,Consultancy,150000
South Lakeland District Council,http://opendatacommunities.org/id/district-council/south-lakeland,30/04/2015,Business Support Community Services,Housing Services,http://opendatacommunities.org/def/concept/finance/sercop/objective/108,Landlord,,42114,48722,1190,0,Monthly rent ,Social Community Care Supplies & Services,410000
South Lakeland District Council,http://opendatacommunities.org/id/district-council/south-lakeland,30/04/2015,Revenues and Benefits,SLDC as Agent,,ROYAL MAIL GROUP PLC,,42114,48723,1439.1,0,2015-2016 Postal Charges a/c 0198123013,Financial Services,200000
South Lakeland District Council,http://opendatacommunities.org/id/district-council/south-lakeland,30/04/2015,Business Support Community Services,Housing Services,http://opendatacommunities.org/def/concept/finance/sercop/objective/108,Hackney & Leigh Ltd,4643476,42114,48724,550,0,Rent in advance ,Social Community Care Supplies & Services,410000
South Lakeland District Council,http://opendatacommunities.org/id/district-council/south-lakeland,30/04/2015,Coronation Hall,External Trading Accounts,,Morson International,,42116,48725,99.4,0,Ulverston Market Hall cleaner from April,Consultancy,150000
South Lakeland District Council,http://opendatacommunities.org/id/district-council/south-lakeland,30/04/2015,Environment and Housing,Housing Services,http://opendatacommunities.org/def/concept/finance/sercop/objective/108,GROWING CONCERNS LANDSCAPING,,42114,48726,936,0,Payment to Growing Concerns for Handy,"Works - Construction, Repair & Maintenance",390000
South Lakeland District Council,http://opendatacommunities.org/id/district-council/south-lakeland,30/04/2015,Business Support Community Services,Internal Trading Accounts,,A & W COMMERCIALS LTD,2630625,42116,48727,94.36,0,Repair hose,Vehicle Management,380000
South Lakeland District Council,http://opendatacommunities.org/id/district-council/south-lakeland,30/04/2015,Electoral Services,Central Services,http://opendatacommunities.org/def/concept/finance/sercop/objective/102,SHAW & SONS LTD,176653,42121,48729,134.5,0,Corex polling station signs and plastic,Stationery,340000
South Lakeland District Council,http://opendatacommunities.org/id/district-council/south-lakeland,30/04/2015,Electoral Services,Central Services,http://opendatacommunities.org/def/concept/finance/sercop/objective/102,SHAW & SONS LTD,176653,42121,48729,269.1,0,Corex polling station signs and plastic,Stationery,340000
South Lakeland District Council,http://opendatacommunities.org/id/district-council/south-lakeland,30/04/2015,Revenues and Benefits,Central Services,http://opendatacommunities.org/def/concept/finance/sercop/objective/102,JACOBS,,42116,48731,150,0,2015-2016 Vat only,Financial Services,200000
South Lakeland District Council,http://opendatacommunities.org/id/district-council/south-lakeland,30/04/2015,Development Implementation,Cultural Environmental Regulatory & Planning Services,http://opendatacommunities.org/def/concept/finance/sercop/objective/104,Whitbread Plc,4120344,42117,48736,550,0,Participation in Kendal Courtesy Toilet,Financial Services,200000
South Lakeland District Council,http://opendatacommunities.org/id/district-council/south-lakeland,30/04/2015,Development Implementation,Cultural Environmental Regulatory & Planning Services,http://opendatacommunities.org/def/concept/finance/sercop/objective/104,J D Wetherspoons Plc,,42117,48737,550,0,Participation in the Kendal Courtesy,Financial Services,200000
South Lakeland District Council,http://opendatacommunities.org/id/district-council/south-lakeland,30/04/2015,Development Implementation,SLDC as Agent,,DHE ASSOCIATES,,42116,48738,2000,0,Adminstation Work for Japan Forum 1st,Financial Services,200000
South Lakeland District Council,http://opendatacommunities.org/id/district-council/south-lakeland,30/04/2015,Social Enterprise Admin,Cultural Environmental Regulatory & Planning Services,http://opendatacommunities.org/def/concept/finance/sercop/objective/104,WINDERMERE TOWN COUNCIL,,42116,48739,1723.51,0,For contribution from SLDC for water use,Environmental Services,180000
South Lakeland District Council,http://opendatacommunities.org/id/district-council/south-lakeland,30/04/2015,Business Support Community Services,Internal Trading Accounts,,FURNESS FLUID POWER LTD,5675728,42116,48740,60.71,0,Repair hydraulic hose,Vehicle Management,380000
South Lakeland District Council,http://opendatacommunities.org/id/district-council/south-lakeland,30/04/2015,Financial Services,Highways & Transport Services,http://opendatacommunities.org/def/concept/finance/sercop/objective/107,ULVERSTON TOWN LANDS TRUST,,42117,48741,2000,0,Rent - The Gill Car Park,Housing Management,250000
South Lakeland District Council,http://opendatacommunities.org/id/district-council/south-lakeland,30/04/2015,Financial Services,SLDC as Agent,,ULVERSTON TOWN LANDS TRUST,,42117,48742,16345.6,0,The Gill Car Park,Financial Services,200000
South Lakeland District Council,http://opendatacommunities.org/id/district-council/south-lakeland,30/04/2015,Development Implementation,Planning and Development,,WINDERMERE TOWN COUNCIL,,42116,48744,528,0,EPF Grant - Birthwaite Gardens,Financial Services,200000
South Lakeland District Council,http://opendatacommunities.org/id/district-council/south-lakeland,30/04/2015,Financial Services,External Trading Accounts,,ZURICH MUNICIPAL,,42116,48745,250,0,Excess I9209/1854 12 Mill Rise Droomer,Financial Services,200000
South Lakeland District Council,http://opendatacommunities.org/id/district-council/south-lakeland,30/04/2015,Development Implementation,Planning and Development,,WINDERMERE TOWN COUNCIL,,42116,48747,1000,0,EPF Grant - Millerground/Rayrigg Meadow,Financial Services,200000
South Lakeland District Council,http://opendatacommunities.org/id/district-council/south-lakeland,30/04/2015,Social Enterprise Admin,Cultural Environmental Regulatory & Planning Services,http://opendatacommunities.org/def/concept/finance/sercop/objective/104,H WICKS (LINDAL) LTD,754590,42121,48748,117.5,0,Skip for 6 days for Priory Road,Horticultural,240000
South Lakeland District Council,http://opendatacommunities.org/id/district-council/south-lakeland,30/04/2015,Development Implementation,Planning and Development,,MILNTHORPE PARISH COUNCIL,,42116,48749,300,0,"EPF Grant - Improvements to Park Road,",Financial Services,200000
South Lakeland District Council,http://opendatacommunities.org/id/district-council/south-lakeland,30/04/2015,Social Enterprise Admin,Cultural Environmental Regulatory & Planning Services,http://opendatacommunities.org/def/concept/finance/sercop/objective/104,NEWSQUEST (NORTH WEST) LTD,3102566,42121,48750,167,0,PUBLIC NOTICES FOR PLANNING 1 APRIL - 31,Facilities & Management Services,190000
South Lakeland District Council,http://opendatacommunities.org/id/district-council/south-lakeland,30/04/2015,Social Enterprise Admin,Cultural Environmental Regulatory & Planning Services,http://opendatacommunities.org/def/concept/finance/sercop/objective/104,NEWSQUEST (NORTH WEST) LTD,3102566,42121,48751,113,0,PUBLIC NOTICES FOR PLANNING 1 APRIL - 31,Facilities & Management Services,190000
South Lakeland District Council,http://opendatacommunities.org/id/district-council/south-lakeland,30/04/2015,Revenues and Benefits,Central Services,http://opendatacommunities.org/def/concept/finance/sercop/objective/102,LOOMIS UK LTD,3200432,42116,48752,101.53,0,2015-16  Langstone House Surcharge,Mail Services,300000
South Lakeland District Council,http://opendatacommunities.org/id/district-council/south-lakeland,30/04/2015,Revenues and Benefits,Highways & Transport Services,http://opendatacommunities.org/def/concept/finance/sercop/objective/107,LOOMIS UK LTD,3200432,42116,48752,914.6,0,2015-16  Langstone House Surcharge,Consultancy,150000
South Lakeland District Council,http://opendatacommunities.org/id/district-council/south-lakeland,30/04/2015,Business Support Community Services,Cultural Environmental Regulatory & Planning Services,http://opendatacommunities.org/def/concept/finance/sercop/objective/104,ARCO LIMITED,133804,42121,48753,-116.92,0,Boxes of Disposables Gloves - Touch n,Environmental Services,180000
South Lakeland District Council,http://opendatacommunities.org/id/district-council/south-lakeland,30/04/2015,Financial Services,Central Services,http://opendatacommunities.org/def/concept/finance/sercop/objective/102,CAPITA BUSINESS SERVICES LTD (NCR),,42095,48754,3005.11,0,Internet transactions March 2015 In.,Financial Services,200000
South Lakeland District Council,http://opendatacommunities.org/id/district-council/south-lakeland,30/04/2015,Financial Services,Central Services,http://opendatacommunities.org/def/concept/finance/sercop/objective/102,ALLPAY.NET LTD (NCR),6871069,42095,48755,40.83,0,SLBC Inv. 363664 31.03.15,Financial Services,200000
South Lakeland District Council,http://opendatacommunities.org/id/district-council/south-lakeland,30/04/2015,Financial Services,Central Services,http://opendatacommunities.org/def/concept/finance/sercop/objective/102,ALLPAY.NET LTD (NCR),6871069,42095,48757,239.75,0,SLBC Inv. 363664 31.03.15,Financial Services,200000
South Lakeland District Council,http://opendatacommunities.org/id/district-council/south-lakeland,30/04/2015,Revenues and Benefits,Central Services,http://opendatacommunities.org/def/concept/finance/sercop/objective/102,VENN GROUP RECRUITMENT SOLUTIONS,,42116,48758,804.88,0,Apr-15,Consultancy,150000
South Lakeland District Council,http://opendatacommunities.org/id/district-council/south-lakeland,30/04/2015,Social Enterprise Admin,Highways & Transport Services,http://opendatacommunities.org/def/concept/finance/sercop/objective/107,We Love Logos,,42116,48759,60.64,0,1 x YK002 Hi Vis waistcoat size 2XL,Clothing,140000
South Lakeland District Council,http://opendatacommunities.org/id/district-council/south-lakeland,30/04/2015,Social Enterprise Admin,Highways & Transport Services,http://opendatacommunities.org/def/concept/finance/sercop/objective/107,We Love Logos,,42116,48759,116.1,0,1 x YK002 Hi Vis waistcoat size 2XL,Clothing,140000
South Lakeland District Council,http://opendatacommunities.org/id/district-council/south-lakeland,30/04/2015,ICT Group,Central Services,http://opendatacommunities.org/def/concept/finance/sercop/objective/102,SITEIMPROVE LTD,4932868,42121,48760,1758.67,0,Quality assurance/accessibility/response,Information Communication Technology,270000
South Lakeland District Council,http://opendatacommunities.org/id/district-council/south-lakeland,30/04/2015,Social Enterprise Admin,Cultural Environmental Regulatory & Planning Services,http://opendatacommunities.org/def/concept/finance/sercop/objective/104,NPS GROUP LTD,6614601,42116,48761,120,0,RESIDENTIAL VALUATION (P KNAPTON),Consultancy,150000
South Lakeland District Council,http://opendatacommunities.org/id/district-council/south-lakeland,30/04/2015,Development Implementation,Cultural Environmental Regulatory & Planning Services,http://opendatacommunities.org/def/concept/finance/sercop/objective/104,CUMBRIA RURAL ENTERPRISE AGENCY LIMITED,2200347,42116,48762,8700,0,Business Support,Environmental Services,180000
South Lakeland District Council,http://opendatacommunities.org/id/district-council/south-lakeland,30/04/2015,Business Support Community Services,Housing Services,http://opendatacommunities.org/def/concept/finance/sercop/objective/108,ADECCO UK LIMITED,593232,42116,48763,102.7,0,Cleaner for Town View Fields Hostel,Consultancy,150000
South Lakeland District Council,http://opendatacommunities.org/id/district-council/south-lakeland,30/04/2015,Social Enterprise Admin,Highways & Transport Services,http://opendatacommunities.org/def/concept/finance/sercop/objective/107,KELTIC,8658742,42116,48764,361.3,0,"6 x patrol cap, colour black in these",Clothing,140000
South Lakeland District Council,http://opendatacommunities.org/id/district-council/south-lakeland,30/04/2015,Financial Services,Central Services,http://opendatacommunities.org/def/concept/finance/sercop/objective/102,ALLPAY.NET LTD (NCR),6871069,42095,48768,527.84,0,SLBC Inv. 363664 31.03.15,Financial Services,200000
South Lakeland District Council,http://opendatacommunities.org/id/district-council/south-lakeland,30/04/2015,Financial Services,Central Services,http://opendatacommunities.org/def/concept/finance/sercop/objective/102,ALLPAY.NET LTD (NCR),6871069,42095,48769,18.44,0,SLBC Inv. 363664 31.03.15,Financial Services,200000
South Lakeland District Council,http://opendatacommunities.org/id/district-council/south-lakeland,30/04/2015,Development Implementation,Culture and Related Serv,http://opendatacommunities.org/def/concept/finance/sercop/objective/104,Maysand Ltd,2912226,42116,48770,78543.32,0,"Castle Dairy Works, Kendal",Financial Services,200000
South Lakeland District Council,http://opendatacommunities.org/id/district-council/south-lakeland,30/04/2015,Human Resources,Non-Service Payments,,COMPUTERSHARE VOUCHER SERVICES LTD,4968447,42116,48771,980,0,CHULD CARE VOUCHERS - APPROX. ?1000.00,Financial Services,200000
South Lakeland District Council,http://opendatacommunities.org/id/district-council/south-lakeland,30/04/2015,Human Resources,Non-Service Payments,,COMPUTERSHARE VOUCHER SERVICES LTD,4968447,42116,48772,36.75,0,CHULD CARE VOUCHERS - APPROX. ?1000.00,Financial Services,200000
South Lakeland District Council,http://opendatacommunities.org/id/district-council/south-lakeland,30/04/2015,Human Resources,Non-Service Payments,,BUSY BEES BENEFITS LTD,6758298,42116,48774,24.36,0,BUSY BEES CHILD CARE VOUCHERS FOR 13/14,Financial Services,200000
South Lakeland District Council,http://opendatacommunities.org/id/district-council/south-lakeland,30/04/2015,Human Resources,Central Services,http://opendatacommunities.org/def/concept/finance/sercop/objective/102,BUSY BEES BENEFITS LTD,6758298,42121,48775,696,0,CHILD CARE VOUCHERS - APPROX ?500.00 PER,Financial Services,200000
South Lakeland District Council,http://opendatacommunities.org/id/district-council/south-lakeland,30/04/2015,Legal Services,Central Services,http://opendatacommunities.org/def/concept/finance/sercop/objective/102,Sellick Partnership Group Ltd,4156002,42116,48776,1134,0,Fees from: w/k ending,Consultancy,150000
South Lakeland District Council,http://opendatacommunities.org/id/district-council/south-lakeland,30/04/2015,Legal Services,Central Services,http://opendatacommunities.org/def/concept/finance/sercop/objective/102,Sellick Partnership Group Ltd,4156002,42116,48777,1512,0,Fees for week ending,Consultancy,150000
South Lakeland District Council,http://opendatacommunities.org/id/district-council/south-lakeland,30/04/2015,Environmental Protection,Cultural Environmental Regulatory & Planning Services,http://opendatacommunities.org/def/concept/finance/sercop/objective/104,GLASDON UK LTD,2160576,42116,48778,21.87,0,1 off Phoenix cenetre rail ,Horticultural,240000
South Lakeland District Council,http://opendatacommunities.org/id/district-council/south-lakeland,30/04/2015,Business Support Community Services,Cultural Environmental Regulatory & Planning Services,http://opendatacommunities.org/def/concept/finance/sercop/objective/104,EPIC Media Group Ltd,4914098,42116,48779,3790,0,Provide livery for Romaquip recycling,Facilities & Management Services,190000
South Lakeland District Council,http://opendatacommunities.org/id/district-council/south-lakeland,30/04/2015,Business Support Community Services,Internal Trading Accounts,,M G D LTD,,42116,48780,35,0,MOTs 01/04/15 - 31/03/16,Vehicle Management,380000
South Lakeland District Council,http://opendatacommunities.org/id/district-council/south-lakeland,30/04/2015,Business Support Community Services,Internal Trading Accounts,,C T HAYTON LTD,1212766,42116,48781,14.5,0,Pins,Vehicle Management,380000
South Lakeland District Council,http://opendatacommunities.org/id/district-council/south-lakeland,30/04/2015,Business Support Community Services,Internal Trading Accounts,,CUMBRIA TRUCK CENTRE LTD,4298488,42116,48782,1233.39,0,ECU,Vehicle Management,380000
South Lakeland District Council,http://opendatacommunities.org/id/district-council/south-lakeland,30/04/2015,Business Support Community Services,Internal Trading Accounts,,SITA UK LTD,2291198,42116,48783,17620.78,0,"Tipping & disposal charges, recyclables",Environmental Services,180000
South Lakeland District Council,http://opendatacommunities.org/id/district-council/south-lakeland,30/04/2015,Business Support Community Services,Internal Trading Accounts,,ARCO LIMITED,133804,42121,48786,26.25,0,Trainers,Clothing,140000
South Lakeland District Council,http://opendatacommunities.org/id/district-council/south-lakeland,30/04/2015,Democratic Services,SLDC as Agent,,CASTLERIGG CONSULTING,6747285,42116,48792,4900,0,Support to the Transformation Challenge,Consultancy,150000
South Lakeland District Council,http://opendatacommunities.org/id/district-council/south-lakeland,30/04/2015,Customer Services,Central Services,,SHRED-IT,4047194,42116,48793,199.02,0,Removal of confidential waste from South,Stationery,340000
South Lakeland District Council,http://opendatacommunities.org/id/district-council/south-lakeland,30/04/2015,Customer Services,Cultural Environmental Regulatory & Planning Services,,RIGHT 2 WORK,,42116,48794,3216,0,Bulky waste removal from April 2014 to,Environmental Services,180000
South Lakeland District Council,http://opendatacommunities.org/id/district-council/south-lakeland,30/04/2015,Social Enterprise Admin,Cultural Environmental Regulatory & Planning Services,,CONTINENTAL LANDSCAPES LTD,2108452,42116,48795,2500,0,Millerground Windermere,Environmental Services,180000
South Lakeland District Council,http://opendatacommunities.org/id/district-council/south-lakeland,30/04/2015,Social Enterprise Admin,Cultural Environmental Regulatory & Planning Services,,CONTINENTAL LANDSCAPES LTD,2108452,42116,48796,3960,0,Cemetery spoil 80 ton Sedbergh and 140,Horticultural,240000
South Lakeland District Council,http://opendatacommunities.org/id/district-council/south-lakeland,30/04/2015,Lake Wardens,Cultural Environmental Regulatory & Planning Services,,VODAFONE LTD (PAGING),,42116,48797,146.61,0,Annual Rental of Lake Wardens Emergency,Utilities,370000
South Lakeland District Council,http://opendatacommunities.org/id/district-council/south-lakeland,30/04/2015,Lake Wardens,Cultural Environmental Regulatory & Planning Services,,Inception Design,7951237,42116,48798,20,0,Minor Adjustment to Millerground,Furniture & Soft Furnishings,210000
South Lakeland District Council,http://opendatacommunities.org/id/district-council/south-lakeland,30/04/2015,Social Enterprise Admin,Highways & Transport Services,,G4S SECURE SOLUTIONS (UK) LTD,1046019,42116,48799,874.84,0,Patrol Services for South Lakeland House,Consultancy,150000
South Lakeland District Council,http://opendatacommunities.org/id/district-council/south-lakeland,30/04/2015,Development Implementation,Cultural Environmental Regulatory & Planning Services,,Beales,5565546,42117,48800,550,0,Participation in the Kendal Courtesy,Financial Services,200000
South Lakeland District Council,http://opendatacommunities.org/id/district-council/south-lakeland,30/04/2015,Business Support Community Services,Central Services,,ABV TRAINING LTD,4700027,42116,48801,69.5,0,Additional place on BIIAB Level 2,Education,170000
South Lakeland District Council,http://opendatacommunities.org/id/district-council/south-lakeland,30/04/2015,Business Support Community Services,Central Services,,ABV TRAINING LTD,4700027,42116,48802,515,0,BIIAB Level 2 ALPA Course for 5,Education,170000
South Lakeland District Council,http://opendatacommunities.org/id/district-council/south-lakeland,30/04/2015,Business Support Community Services,Housing Services,,Landlord,7803122,42116,48815,500,0,Monthly rent ,Social Community Care Supplies & Services,410000
South Lakeland District Council,http://opendatacommunities.org/id/district-council/south-lakeland,30/04/2015,Business Support Community Services,Housing Services,,Landlord,,42116,48816,500,0,Monthly rent ,Social Community Care Supplies & Services,410000
South Lakeland District Council,http://opendatacommunities.org/id/district-council/south-lakeland,30/04/2015,Business Support Community Services,Housing Services,,Landlord,,42116,48817,520,0,Monthly rent ,Social Community Care Supplies & Services,410000
South Lakeland District Council,http://opendatacommunities.org/id/district-council/south-lakeland,30/04/2015,Business Support Community Services,Housing Services,,Landlord,,42116,48818,625,0,Monthly rent ,Social Community Care Supplies & Services,410000
South Lakeland District Council,http://opendatacommunities.org/id/district-council/south-lakeland,30/04/2015,Social Enterprise Admin,Highways & Transport Services,,BRITISH TELECOMMUNICATIONS PLC,1800000,42116,48819,186.5,0,Private circuit bill for Westmorland SC,Information Communication Technology,270000
South Lakeland District Council,http://opendatacommunities.org/id/district-council/south-lakeland,30/04/2015,ICT Group,Central Services,,DEMON (VODAFONE),,42116,48820,120,0,Domain Registration,Information Communication Technology,270000
South Lakeland District Council,http://opendatacommunities.org/id/district-council/south-lakeland,30/04/2015,Legal Services,Central Services,,Sellick Partnership Group Ltd,4156002,42116,48821,869.4,0,Fees from: w/k ending,Consultancy,150000
South Lakeland District Council,http://opendatacommunities.org/id/district-council/south-lakeland,30/04/2015,Business Support Community Services,Cultural Environmental Regulatory & Planning Services,,N WESTERN INSHORE FISHERIES &,,42116,48822,533.5,0,collection/transport of cockle samples,Environmental Services,180000
South Lakeland District Council,http://opendatacommunities.org/id/district-council/south-lakeland,30/04/2015,Revenues and Benefits,Central Services,,BADENOCH & CLARK,1356186,42116,48825,426.72,0,Revs and Bens  -  April 2015,Consultancy,150000
South Lakeland District Council,http://opendatacommunities.org/id/district-council/south-lakeland,30/04/2015,Revenues and Benefits,Central Services,,BADENOCH & CLARK,1356186,42121,48826,520.07,0,Revs and Bens   ,Consultancy,150000
South Lakeland District Council,http://opendatacommunities.org/id/district-council/south-lakeland,30/04/2015,Policy & Partnerships,Cultural Environmental Regulatory & Planning Services,,PENNINGTON PARISH COUNCIL,,42116,48827,500,0,Swarthmoor playground refurbishment,Financial Services,200000
South Lakeland District Council,http://opendatacommunities.org/id/district-council/south-lakeland,30/04/2015,Business Support Community Services,Housing Services,,Palatine Beds/1907,,42121,48828,465,0,Lindisfarne mattresses,Furniture & Soft Furnishings,210000
South Lakeland District Council,http://opendatacommunities.org/id/district-council/south-lakeland,30/04/2015,Human Resources,Central Services,,NORTH WEST EMPLOYERS,,42121,48829,200,0,Epaycheck renewal 2015-2016,Education,170000
South Lakeland District Council,http://opendatacommunities.org/id/district-council/south-lakeland,30/04/2015,Business Support Community Services,Internal Trading Accounts,,FREIGHT TRANSPORT ASSOCIATION,,42121,48830,935,0,Membership fee 2015/16,Financial Services,200000
South Lakeland District Council,http://opendatacommunities.org/id/district-council/south-lakeland,30/04/2015,Business Support Community Services,Internal Trading Accounts,,STAGECOACH NORTHWEST,,42121,48831,50,0,Steam cleaning 01/04/15 - 31/03/16,Vehicle Management,380000
South Lakeland District Council,http://opendatacommunities.org/id/district-council/south-lakeland,30/04/2015,Business Support Community Services,Internal Trading Accounts,,EK MOTOR FACTORS LTD,838524,42121,48832,46.5,0,Oil filters,Furniture & Soft Furnishings,210000
South Lakeland District Council,http://opendatacommunities.org/id/district-council/south-lakeland,30/04/2015,Business Support Community Services,Internal Trading Accounts,,CUMBRIA TRUCK CENTRE LTD,4298488,42121,48833,375.86,0,Valve,Vehicle Management,380000
South Lakeland District Council,http://opendatacommunities.org/id/district-council/south-lakeland,30/04/2015,Business Support Community Services,Cultural Environmental Regulatory & Planning Services,,INTELLIGENT DATA SYSTEMS (UK) LTD,5148878,42121,48834,125,0,IDS Checks for Taxi Drivers,Highway Equipment & Materials,230000
South Lakeland District Council,http://opendatacommunities.org/id/district-council/south-lakeland,30/04/2015,Human Resources,Central Services,,DISCLOSURE AND BARRING SERVICE,,42121,48835,44,0,Enhanced checks for:,Legal Services,280000
South Lakeland District Council,http://opendatacommunities.org/id/district-council/south-lakeland,30/04/2015,Human Resources,SLDC as Agent,,DISCLOSURE AND BARRING SERVICE,,42121,48835,308,0,Enhanced checks for:,Legal Services,280000
South Lakeland District Council,http://opendatacommunities.org/id/district-council/south-lakeland,30/04/2015,Printing Section,Central Services,,ROSEFOX PAPER LIMITED,1655083,42121,48836,72.37,0,Paper One A4 80gsm,Stationery,340000
South Lakeland District Council,http://opendatacommunities.org/id/district-council/south-lakeland,30/04/2015,Human Resources,Central Services,,EMPLOYMENT PAGES LTD,7363099,42123,48837,367.2,0,Advert for Licensing Assistant and,Education,170000
South Lakeland District Council,http://opendatacommunities.org/id/district-council/south-lakeland,30/04/2015,Human Resources,Central Services,,EMPLOYMENT PAGES LTD,7363099,42123,48837,489.6,0,Advert for Licensing Assistant and,Human Resources,260000
South Lakeland District Council,http://opendatacommunities.org/id/district-council/south-lakeland,30/04/2015,Human Resources,Housing Services,,EMPLOYMENT PAGES LTD,7363099,42123,48837,244.8,0,Advert for Licensing Assistant and,Consultancy,150000
South Lakeland District Council,http://opendatacommunities.org/id/district-council/south-lakeland,30/04/2015,Printing Section,Central Services,,PARAGON GROUP UK LTD,551336,42121,48838,150,0,Blue Payslip Paper 6000 sheets,Stationery,340000
South Lakeland District Council,http://opendatacommunities.org/id/district-council/south-lakeland,30/04/2015,Democratic Services,Central Services,,CONNECTED CONCEPTS LTD,6714757,42121,48839,12000,0,Excelsior CRM Annual Support 14 Apr,Information Communication Technology,270000
South Lakeland District Council,http://opendatacommunities.org/id/district-council/south-lakeland,30/04/2015,Legal Services,Cultural Environmental Regulatory & Planning Services,,ALEXANDRA PLC,,42121,48840,252.05,0,"W368R Trousers, Navy Blue, 2 pairs x",Clothing,140000
South Lakeland District Council,http://opendatacommunities.org/id/district-council/south-lakeland,30/04/2015,Financial Services,Central Services,,ALLPAY.NET LTD (NCR),6871069,42095,48841,18.3,0,SLBC Inv. 363664 31.03.15,Financial Services,200000
South Lakeland District Council,http://opendatacommunities.org/id/district-council/south-lakeland,30/04/2015,ICT Group,Central Services,,NORTHGATE VEHICLE HIRE LTD,1434157,42121,48842,54.4,0,7 seater for use ,Street & Traffic Management,350000
South Lakeland District Council,http://opendatacommunities.org/id/district-council/south-lakeland,30/04/2015,Development Strategy,Cultural Environmental Regulatory & Planning Services,,LANCASTER CITY COUNCIL,,42121,48843,238,0,Contribution to 50% Hyder SA costs as,Consultancy,150000
South Lakeland District Council,http://opendatacommunities.org/id/district-council/south-lakeland,30/04/2015,Environmental Protection,Cultural Environmental Regulatory & Planning Services,,CUMBRIA WASTE RECYCLING LTD,3162439,42121,48961,96.82,0,"Cemeteries Bin Emptying Jan,Feb,March",Environmental Services,180000
South Lakeland District Council,http://opendatacommunities.org/id/district-council/south-lakeland,30/04/2015,Business Support Community Services,Transport Planning Policy,,ARCO LIMITED,133804,42123,48962,5.95,0,PPE 2015/16,Cleaning & Janitorial,130000
South Lakeland District Council,http://opendatacommunities.org/id/district-council/south-lakeland,30/04/2015,Financial Services,Central Services,,CUMBRIA LGPS,,42121,48964,73047.16,0,Qtr contribution re past pensions,Financial Services,200000
South Lakeland District Council,http://opendatacommunities.org/id/district-council/south-lakeland,30/04/2015,Business Support Community Services,Internal Trading Accounts,,RIBBLESDALE AUTO ELECTRICS 1992 LTD,2732686,42121,48966,103.5,0,Batteries,Vehicle Management,380000
South Lakeland District Council,http://opendatacommunities.org/id/district-council/south-lakeland,30/04/2015,Business Support Community Services,Internal Trading Accounts,,RIBBLESDALE AUTO ELECTRICS 1992 LTD,2732686,42121,48967,6.2,0,Batteries,Vehicle Management,380000
South Lakeland District Council,http://opendatacommunities.org/id/district-council/south-lakeland,30/04/2015,Business Support Community Services,Internal Trading Accounts,,RIBBLESDALE AUTO ELECTRICS 1992 LTD,2732686,42121,48968,2.2,0,Batteries,Vehicle Management,380000
South Lakeland District Council,http://opendatacommunities.org/id/district-council/south-lakeland,30/04/2015,Legal Services,Central Services,,ANTHONY COLLINS SOLICITORS,OC313432,42121,48969,185,0,Fee in respect of State Aid Advice for,Legal Services,280000
South Lakeland District Council,http://opendatacommunities.org/id/district-council/south-lakeland,30/04/2015,Social Enterprise Admin,Highways & Transport Services,,NPS GROUP LTD,6614601,42121,48970,900,0,Draft contingency plan for the,Street & Traffic Management,350000
South Lakeland District Council,http://opendatacommunities.org/id/district-council/south-lakeland,30/04/2015,Business Support Community Services,Internal Trading Accounts,,ARCO LIMITED,133804,42123,48971,12.24,0,Gloves,Clothing,140000
South Lakeland District Council,http://opendatacommunities.org/id/district-council/south-lakeland,30/04/2015,Business Support Community Services,Cultural Environmental Regulatory & Planning Services,,CUMBRIA WASTE RECYCLING LTD,3162439,42123,48972,12017.3,0,Empty recycling banks in April,Environmental Services,180000
South Lakeland District Council,http://opendatacommunities.org/id/district-council/south-lakeland,30/04/2015,Business Support Community Services,Internal Trading Accounts,,DENNIS EAGLE LTD,3794455,42121,48973,636.87,0,Latch,Vehicle Management,380000
South Lakeland District Council,http://opendatacommunities.org/id/district-council/south-lakeland,30/04/2015,Business Support Community Services,Internal Trading Accounts,,DENNIS EAGLE LTD,3794455,42121,48974,212.29,0,Latch,Vehicle Management,380000
South Lakeland District Council,http://opendatacommunities.org/id/district-council/south-lakeland,30/04/2015,Business Support Community Services,Internal Trading Accounts,,DENNIS EAGLE LTD,3794455,42121,48975,114.97,0,Latch,Vehicle Management,380000
South Lakeland District Council,http://opendatacommunities.org/id/district-council/south-lakeland,30/04/2015,Business Support Community Services,Internal Trading Accounts,,SOLWAY DAF,1393710,42121,48976,367.52,0,Collar,Vehicle Management,380000
South Lakeland District Council,http://opendatacommunities.org/id/district-council/south-lakeland,30/04/2015,Business Support Community Services,Internal Trading Accounts,,SOLWAY DAF,1393710,42121,48977,11.12,0,Collar,Vehicle Management,380000
South Lakeland District Council,http://opendatacommunities.org/id/district-council/south-lakeland,30/04/2015,Business Support Community Services,Internal Trading Accounts,,M G D LTD,,42121,48978,35,0,MOTs 01/04/15 - 31/03/16,Vehicle Management,380000
South Lakeland District Council,http://opendatacommunities.org/id/district-council/south-lakeland,30/04/2015,Business Support Community Services,Housing Services,,James Andrews Recruitment Solutions,6834852,42123,48982,931.25,0,Payment for  - Housing,Consultancy,150000
South Lakeland District Council,http://opendatacommunities.org/id/district-council/south-lakeland,30/04/2015,Lake Wardens,Cultural Environmental Regulatory & Planning Services,,SURVITEC SERVICE & DISTRIBUTION LTD,553893,42121,48983,55,0,1 x Coil(220m)of 12mm Polyprop Rope in,Furniture & Soft Furnishings,210000
South Lakeland District Council,http://opendatacommunities.org/id/district-council/south-lakeland,30/04/2015,Development Strategy,Central Services,,ROYAL TOWN PLANNING INSTITUTE,,42121,48984,95,0,To attend RTPI,Education,170000
South Lakeland District Council,http://opendatacommunities.org/id/district-council/south-lakeland,30/04/2015,Financial Services,Central Services,,NORTH KESTEVEN DISTRICT COUNCIL,,42121,48985,2145,0,Rural Services Network - Service Charge,Financial Services,200000
South Lakeland District Council,http://opendatacommunities.org/id/district-council/south-lakeland,30/04/2015,Business Support Community Services,Internal Trading Accounts,,FREIGHT TRANSPORT ASSOCIATION,,42123,48986,107.88,0,Defect pads,Cleaning & Janitorial,130000
South Lakeland District Council,http://opendatacommunities.org/id/district-council/south-lakeland,30/04/2015,Business Support Community Services,Internal Trading Accounts,,SOLWAY DAF,1393710,42121,48987,31.69,0,Collar,Vehicle Management,380000
South Lakeland District Council,http://opendatacommunities.org/id/district-council/south-lakeland,30/04/2015,Business Support Community Services,Internal Trading Accounts,,SOLWAY DAF,1393710,42121,48988,1087.44,0,Collar,Vehicle Management,380000
South Lakeland District Council,http://opendatacommunities.org/id/district-council/south-lakeland,30/04/2015,Business Support Community Services,Internal Trading Accounts,,SOLWAY DAF,1393710,42121,48989,35.27,0,Collar,Vehicle Management,380000
South Lakeland District Council,http://opendatacommunities.org/id/district-council/south-lakeland,30/04/2015,Business Support Community Services,Internal Trading Accounts,,SOLWAY DAF,1393710,42121,48990,56.24,0,Collar,Vehicle Management,380000
South Lakeland District Council,http://opendatacommunities.org/id/district-council/south-lakeland,30/04/2015,Business Support Community Services,Internal Trading Accounts,,SOLWAY DAF,1393710,42121,48991,23.14,0,Collar,Vehicle Management,380000
South Lakeland District Council,http://opendatacommunities.org/id/district-council/south-lakeland,30/04/2015,Business Support Community Services,Internal Trading Accounts,,SOLWAY DAF,1393710,42121,48992,39.77,0,Collar,Vehicle Management,380000
South Lakeland District Council,http://opendatacommunities.org/id/district-council/south-lakeland,30/04/2015,Business Support Community Services,Central Services,,CUMBRIA WASTE MANAGEMENT LIMITED,2665973,42121,48993,183.95,0,COTC cover at Ecclerigg - 2014/15,Consultancy,150000
South Lakeland District Council,http://opendatacommunities.org/id/district-council/south-lakeland,30/04/2015,Business Support Community Services,Central Services,,CUMBRIA WASTE MANAGEMENT LIMITED,2665973,42121,48994,65,0,COTC cover at Ecclerigg - 2014/15,Consultancy,150000
South Lakeland District Council,http://opendatacommunities.org/id/district-council/south-lakeland,30/04/2015,Business Support Community Services,Internal Trading Accounts,,BRIAN ARMISTEAD LTD T/A SINKFALL RECYCLI,4133280,42123,48995,1176.8,0,Green waste tipping - 2015/16,Environmental Services,180000
South Lakeland District Council,http://opendatacommunities.org/id/district-council/south-lakeland,30/04/2015,Social Enterprise Admin,Cultural Environmental Regulatory & Planning Services,,H WICKS (LINDAL) LTD,754590,42121,48996,117.5,0,Skip for Priory Road Allotments,Horticultural,240000
South Lakeland District Council,http://opendatacommunities.org/id/district-council/south-lakeland,30/04/2015,Electoral Services,Central Services,,Killington Marquees Ltd,,42121,48997,96.7,0,Hire of Tables for Parliamentary Count,,
South Lakeland District Council,http://opendatacommunities.org/id/district-council/south-lakeland,30/04/2015,Electoral Services,Central Services,,Killington Marquees Ltd,,42121,48997,193.3,0,Hire of Tables for Parliamentary Count,,
South Lakeland District Council,http://opendatacommunities.org/id/district-council/south-lakeland,30/04/2015,Development Implementation,Central Services,,CRUDEN PROPERTY SERVICES LTD,3851237,42121,48999,1250,0,"Coronation Hall, Ulverston - Install",Financial Services,200000
South Lakeland District Council,http://opendatacommunities.org/id/district-council/south-lakeland,30/04/2015,Policy & Partnerships,Central Services,,GATES TRAVEL SERVICE,,42121,49001,23.1,0,Imelda Lewis-Winters - Arts Council,Public Transport,360000
South Lakeland District Council,http://opendatacommunities.org/id/district-council/south-lakeland,30/04/2015,Social Enterprise Admin,Central Services,,CUMBRIA WASTE RECYCLING LTD,3162439,42121,49002,28.28,0,Langstone House 360 Ltr wheelie bin,Environmental Services,180000
South Lakeland District Council,http://opendatacommunities.org/id/district-council/south-lakeland,30/04/2015,Environmental Protection,Cultural Environmental Regulatory & Planning Services,,CUMBRIA WASTE RECYCLING LTD,3162439,42121,49003,52.97,0,"Cemeteries Bin Emptying Jan,Feb,March",Environmental Services,180000
South Lakeland District Council,http://opendatacommunities.org/id/district-council/south-lakeland,30/04/2015,Environmental Protection,Cultural Environmental Regulatory & Planning Services,,CUMBRIA WASTE RECYCLING LTD,3162439,42121,49004,65.47,0,"Cemeteries Bin Emptying Jan,Feb,March",Environmental Services,180000
South Lakeland District Council,http://opendatacommunities.org/id/district-council/south-lakeland,30/04/2015,Coronation Hall,Cultural Environmental Regulatory & Planning Services,,CUMBRIA WASTE RECYCLING LTD,3162439,42123,49005,94.02,0,"Emptying of skips from Coronation Hall,",Environmental Services,180000
South Lakeland District Council,http://opendatacommunities.org/id/district-council/south-lakeland,30/04/2015,Environmental Protection,Cultural Environmental Regulatory & Planning Services,,CUMBRIA WASTE RECYCLING LTD,3162439,42121,49006,56.56,0,"Cemeteries Bin Emptying Jan,Feb,March",Environmental Services,180000
South Lakeland District Council,http://opendatacommunities.org/id/district-council/south-lakeland,30/04/2015,Lake Wardens,Cultural Environmental Regulatory & Planning Services,,CUMBRIA WASTE RECYCLING LTD,3162439,42121,49007,160.52,0,Monthly Emptying of Refuse Wheelie Bins,Environmental Services,180000
South Lakeland District Council,http://opendatacommunities.org/id/district-council/south-lakeland,30/04/2015,Environmental Protection,Cultural Environmental Regulatory & Planning Services,,CUMBRIA WASTE RECYCLING LTD,3162439,42121,49008,75.84,0,"Cemeteries Bin Emptying Jan,Feb,March",Environmental Services,180000
South Lakeland District Council,http://opendatacommunities.org/id/district-council/south-lakeland,30/04/2015,Kendal Town Hall,Cultural Environmental Regulatory & Planning Services,,CUMBRIA WASTE RECYCLING LTD,3162439,42121,49010,119.4,0,Weekly collection of the bins at Kendal,Environmental Services,180000
South Lakeland District Council,http://opendatacommunities.org/id/district-council/south-lakeland,30/04/2015,Environmental Protection,Cultural Environmental Regulatory & Planning Services,,CUMBRIA WASTE RECYCLING LTD,3162439,42121,49012,24.68,0,"Cemeteries Bin Emptying Jan,Feb,March",Environmental Services,180000
South Lakeland District Council,http://opendatacommunities.org/id/district-council/south-lakeland,30/04/2015,Social Enterprise Admin,Highways & Transport Services,,CUMBRIA WASTE RECYCLING LTD,3162439,42123,49013,47.27,0,Wheelie bin Westmorland Multi-storey Car,Environmental Services,180000
South Lakeland District Council,http://opendatacommunities.org/id/district-council/south-lakeland,30/04/2015,Environmental Protection,Cultural Environmental Regulatory & Planning Services,,CUMBRIA WASTE RECYCLING LTD,3162439,42121,49014,28.28,0,"Cemeteries Bin Emptying Jan,Feb,March",Environmental Services,180000
South Lakeland District Council,http://opendatacommunities.org/id/district-council/south-lakeland,30/04/2015,Lake Wardens,Cultural Environmental Regulatory & Planning Services,,CUMBRIA WASTE RECYCLING LTD,3162439,42121,49015,88.84,0,Monthly Emptying of Refuse Wheelie Bins,Environmental Services,180000
South Lakeland District Council,http://opendatacommunities.org/id/district-council/south-lakeland,30/04/2015,Electoral Services,Central Services,,SCI PRINT LTD,,42121,49016,7804.68,0,Share of Poll cards etc for District,Stationery,340000
South Lakeland District Council,http://opendatacommunities.org/id/district-council/south-lakeland,30/04/2015,Electoral Services,Central Services,,SCI PRINT LTD,,42121,49016,15609.36,0,Share of Poll cards etc for District,Stationery,340000
South Lakeland District Council,http://opendatacommunities.org/id/district-council/south-lakeland,30/04/2015,Electoral Services,Central Services,,ROYAL MAIL GROUP PLC,,42121,49017,67.04,0,Response Plus Normal Postage,Mail Services,300000
South Lakeland District Council,http://opendatacommunities.org/id/district-council/south-lakeland,30/04/2015,Printing Section,Central Services,,GANDLAKE TECHNOLOGY LTD,,42121,49018,2211.63,0,Rental License for LaserServe for 3,Stationery,340000
South Lakeland District Council,http://opendatacommunities.org/id/district-council/south-lakeland,30/04/2015,Printing Section,Central Services,,PRESCO UK LTD,5923806,42123,49019,55.26,0,A3 250mic Laminating pouches,Stationery,340000
South Lakeland District Council,http://opendatacommunities.org/id/district-council/south-lakeland,30/04/2015,Printing Section,Central Services,,PRESCO UK LTD,5923806,42123,49019,41.76,0,A3 250mic Laminating pouches,Stationery,340000
South Lakeland District Council,http://opendatacommunities.org/id/district-council/south-lakeland,30/04/2015,Development Management,Cultural Environmental Regulatory & Planning Services,,SUN SIGNS,4413045,42121,49020,450,0,Supply of advertising/marketing signs,"Works - Construction, Repair & Maintenance",390000
South Lakeland District Council,http://opendatacommunities.org/id/district-council/south-lakeland,30/04/2015,Business Support Community Services,Cultural Environmental Regulatory & Planning Services,,ARCO LIMITED,133804,42121,49021,59.94,0,4 x Arco Handwipes - tub of 150 wipes,Furniture & Soft Furnishings,210000
South Lakeland District Council,http://opendatacommunities.org/id/district-council/south-lakeland,30/04/2015,Business Support Community Services,Cultural Environmental Regulatory & Planning Services,,ARCO LIMITED,133804,42121,49022,32.52,0,4 x Arco Handwipes - tub of 150 wipes,Furniture & Soft Furnishings,210000
South Lakeland District Council,http://opendatacommunities.org/id/district-council/south-lakeland,30/04/2015,Business Support Community Services,Internal Trading Accounts,,COMPASS COMPONENTS,,42123,49023,195.74,0,Consumables 01/04/15 - 31/03/16,Cleaning & Janitorial,130000
South Lakeland District Council,http://opendatacommunities.org/id/district-council/south-lakeland,30/04/2015,Coronation Hall,Cultural Environmental Regulatory & Planning Services,,ST JOHN AMBULANCE CUMBRIA,,42121,49025,52.8,0,FAO ,Consultancy,150000
South Lakeland District Council,http://opendatacommunities.org/id/district-council/south-lakeland,30/04/2015,Democratic Services,Central Services,,MAJESTIC PUBLICATIONS LTD,4353962,42121,49026,195,0,St Mary's Hospice Diary 2015,Financial Services,200000
South Lakeland District Council,http://opendatacommunities.org/id/district-council/south-lakeland,30/04/2015,Business Support Community Services,Cultural Environmental Regulatory & Planning Services,,GREEN BROTHERS SIGNS LTD,7433026,42123,49027,55.25,0,Sprint Holme,Domestic Goods,160000
South Lakeland District Council,http://opendatacommunities.org/id/district-council/south-lakeland,30/04/2015,Printing Section,Central Services,,STANDING STONE DRAWING OFFICE SUPPLIES,5128817,42121,49028,241.03,0,A0 110m rolls for Plotter,Stationery,340000
South Lakeland District Council,http://opendatacommunities.org/id/district-council/south-lakeland,30/04/2015,Environment and Housing,SLDC as Agent,,HOME GROUP LTD,IP22981R,42123,49029,2518.87,0,CBL Co-ordinator Cost from 1/6/14 -,Financial Services,200000
South Lakeland District Council,http://opendatacommunities.org/id/district-council/south-lakeland,30/04/2015,Printing Section,Central Services,,ALPHATEC P.F.E,5419826,42121,49030,718.5,0,Annual service contract for finishing,Financial Services,200000
South Lakeland District Council,http://opendatacommunities.org/id/district-council/south-lakeland,30/04/2015,Development Implementation,Planning and Development,,C M SIGNS,,42121,49031,2844,0,To supply 12 7x4x3 alloy laminate,Financial Services,200000
South Lakeland District Council,http://opendatacommunities.org/id/district-council/south-lakeland,30/04/2015,Lake Wardens,Cultural Environmental Regulatory & Planning Services,,RS COMPONENTS LTD,1002091,42121,49032,94.06,0,2 x Blue PE Tarpaulin - 3m x 2m,Vehicle Management,380000
South Lakeland District Council,http://opendatacommunities.org/id/district-council/south-lakeland,30/04/2015,ICT Group,Central Services,,SYMANTEC.CLOUD,,42123,49034,2310,0,Sync email protect cloud per user hosted,Information Communication Technology,270000
South Lakeland District Council,http://opendatacommunities.org/id/district-council/south-lakeland,30/04/2015,Development Management,Cultural Environmental Regulatory & Planning Services,,SOUTH LAKES HOUSING,IP031419,42121,49036,91.81,0,Building Control Share of Postage on the,Stationery,340000
South Lakeland District Council,http://opendatacommunities.org/id/district-council/south-lakeland,30/04/2015,Business Support Community Services,Cultural Environmental Regulatory & Planning Services,,GRANTS- MISCELLANEOUS,,42121,49039,796.21,0,"RRG 2014 Payment for Hammerside,",Arts & Leisure Services,290000
South Lakeland District Council,http://opendatacommunities.org/id/district-council/south-lakeland,30/04/2015,Environment and Housing,Housing,,C W COX & SONS (KENDAL) LTD,3498844,42121,49040,2261.82,0,"39 Beast Banks, Kendal, LA9 4JJ",Financial Services,200000
South Lakeland District Council,http://opendatacommunities.org/id/district-council/south-lakeland,30/04/2015,Development Implementation,Planning and Development,,Another Space,,42121,49041,1250,0,EPF Grant - Holocaust Project @,Financial Services,200000
South Lakeland District Council,http://opendatacommunities.org/id/district-council/south-lakeland,30/04/2015,Social Enterprise Admin,Cultural Environmental Regulatory & Planning Services,,Express Matting Services Ltd,7000887,42121,49042,2476,0,140 rubber grass mats 1.5m x 1m x 23mm,Sports & Playground Equipment & Maintenance,330000
South Lakeland District Council,http://opendatacommunities.org/id/district-council/south-lakeland,30/04/2015,Revenues and Benefits,Central Services,,VENN GROUP RECRUITMENT SOLUTIONS,,42121,49043,869.5,0,Apr-15,Consultancy,150000
South Lakeland District Council,http://opendatacommunities.org/id/district-council/south-lakeland,30/04/2015,Revenues and Benefits,Central Services,,MERITEC LTD,3224622,42121,49046,279,0,2015 -2016 RAB Processing Contract and,Consultancy,150000
South Lakeland District Council,http://opendatacommunities.org/id/district-council/south-lakeland,30/04/2015,Revenues and Benefits,SLDC as Agent,,ROYAL MAIL GROUP PLC,,42121,49047,1964.49,0,2015-2016 Postal Charges a/c 0198123013,Financial Services,200000
South Lakeland District Council,http://opendatacommunities.org/id/district-council/south-lakeland,30/04/2015,Revenues and Benefits,Central Services,,ROYAL MAIL GROUP PLC,,42123,49048,77.5,0,2015-2016 Postal Charges a/c 0055114000,Mail Services,300000
South Lakeland District Council,http://opendatacommunities.org/id/district-council/south-lakeland,30/04/2015,Coronation Hall,External Trading Accounts,,Morson International,,42123,49051,119.28,0,Ulverston Market Hall cleaner from April,Consultancy,150000
South Lakeland District Council,http://opendatacommunities.org/id/district-council/south-lakeland,30/04/2015,Democratic Services,Central Services,,RIVERBANK HOSPITALITY CATERING,,42121,49052,54,0,Buffet for 12 people for O&S Workshop,Education,170000
South Lakeland District Council,http://opendatacommunities.org/id/district-council/south-lakeland,30/04/2015,Technical Team,Central Services,,GATES TRAVEL SERVICE,,42121,49053,126.4,0,TRAVEL TO BIRMINGHAM 18TH MAY RETURN,Education,170000
South Lakeland District Council,http://opendatacommunities.org/id/district-council/south-lakeland,30/04/2015,Business Support Community Services,Internal Trading Accounts,,K S INTERNATIONAL LTD,2703321,42121,49054,160,0,U bolts,Vehicle Management,380000
South Lakeland District Council,http://opendatacommunities.org/id/district-council/south-lakeland,30/04/2015,Business Support Community Services,Internal Trading Accounts,,J R RICHARDSON LTD,2225792,42121,49055,150.44,0,Vehicle washing consumables,Cleaning & Janitorial,130000
South Lakeland District Council,http://opendatacommunities.org/id/district-council/south-lakeland,30/04/2015,Social Enterprise Admin,Cultural Environmental Regulatory & Planning Services,,Cleartrack (EvL) Ltd,3881690,42121,49056,2447.5,0,Last phase at Millerground,Environmental Services,180000
South Lakeland District Council,http://opendatacommunities.org/id/district-council/south-lakeland,30/04/2015,Social Enterprise Admin,Cultural Environmental Regulatory & Planning Services,,Cleartrack (EvL) Ltd,3881690,42121,49057,100,0,Cedar Tree at Nobles Rest  to be made,Environmental Services,180000
South Lakeland District Council,http://opendatacommunities.org/id/district-council/south-lakeland,30/04/2015,Development Implementation,Cultural Environmental Regulatory & Planning Services,,ELECTORAL REFORM SERVICES LTD,2263092,42121,49058,1890.3,0,Independent Adminstation of BID Ballot,Environmental Services,180000
South Lakeland District Council,http://opendatacommunities.org/id/district-council/south-lakeland,30/04/2015,Financial Services,Central Services,,DUE NORTH LTD,4499218,42121,49061,612,0,Licence for Procontract The Chest,Information Communication Technology,270000
South Lakeland District Council,http://opendatacommunities.org/id/district-council/south-lakeland,30/04/2015,Coronation Hall,Cultural Environmental Regulatory & Planning Services,,ULVERSTON AMATEUR OPERATIC SOCIETY,,42121,49062,55,0,Stewards for The Future's Bright by,Consultancy,150000
South Lakeland District Council,http://opendatacommunities.org/id/district-council/south-lakeland,30/04/2015,Coronation Hall,Cultural Environmental Regulatory & Planning Services,,ULVERSTON AMATEUR OPERATIC SOCIETY,,42121,49063,55,0,Manchester Camerata Interactive Schools,Consultancy,150000
South Lakeland District Council,http://opendatacommunities.org/id/district-council/south-lakeland,30/04/2015,Legal Services,Central Services,,WEIGHTMANS LLP,OC326117,42121,49064,324,0,Fees in respect of re: ,Legal Services,280000
South Lakeland District Council,http://opendatacommunities.org/id/district-council/south-lakeland,30/04/2015,Legal Services,Central Services,,WEIGHTMANS LLP,OC326117,42121,49065,75,0,Fees re:  Bankruptcy Proceedings,Legal Services,280000
South Lakeland District Council,http://opendatacommunities.org/id/district-council/south-lakeland,30/04/2015,Business Support Community Services,Housing Services,,IMPACT HOUSING ASSOCIATION LTD,IP21411R,42121,49069,140,0,Rent in advance ,Social Community Care Supplies & Services,410000
South Lakeland District Council,http://opendatacommunities.org/id/district-council/south-lakeland,30/04/2015,Business Support Community Services,Housing Services,,Great Head House Estates,1645885,42121,49070,390,0,Rent in advance ,Social Community Care Supplies & Services,410000
South Lakeland District Council,http://opendatacommunities.org/id/district-council/south-lakeland,30/04/2015,Business Support Community Services,Cultural Environmental Regulatory & Planning Services,,Floodsafe Projects Ltd,8418342,42121,49071,6462.5,0,Supply & install flood protection,Arts & Leisure Services,290000
South Lakeland District Council,http://opendatacommunities.org/id/district-council/south-lakeland,30/04/2015,Coronation Hall,SLDC as Agent,,ONE OFF TICKET SALES (CORO HALL),,42121,49072,3550.66,0,A funny and informative evening with,Financial Services,200000
South Lakeland District Council,http://opendatacommunities.org/id/district-council/south-lakeland,30/04/2015,ICT Group,Central Services,,CABLE & WIRELESS UK (VODAFONE),,42123,49073,4470.38,0,YC00013304 1/4/15 - 30/6/15 City,Information Communication Technology,270000
South Lakeland District Council,http://opendatacommunities.org/id/district-council/south-lakeland,30/04/2015,ICT Group,Central Services,,CABLE & WIRELESS UK (VODAFONE),,42123,49074,999,0,Gsi Convergence Framework,Information Communication Technology,270000
South Lakeland District Council,http://opendatacommunities.org/id/district-council/south-lakeland,30/04/2015,Policy & Partnerships,Central Services,,LANCASHIRE COUNTY COUNCIL,,42123,49075,5334,0,"Initial payment for year 1, 2015 survey",Consultancy,150000
South Lakeland District Council,http://opendatacommunities.org/id/district-council/south-lakeland,30/04/2015,Coronation Hall,Cultural Environmental Regulatory & Planning Services,,EME FURNITURE,5372412,42123,49077,49.05,0,3 shelves for unit - shelf code GALS2 @,Furniture & Soft Furnishings,210000
South Lakeland District Council,http://opendatacommunities.org/id/district-council/south-lakeland,30/04/2015,Social Enterprise Admin,Central Services,,MARGARET BARROW INTERIORS LTD T/A MBI,,42123,49078,400,0,1 x T106 Chair Havana Black,Furniture & Soft Furnishings,210000
South Lakeland District Council,http://opendatacommunities.org/id/district-council/south-lakeland,30/04/2015,Social Enterprise Admin,Central Services,,MARGARET BARROW INTERIORS LTD T/A MBI,,42123,49079,649,0,Height Adjustable Desk,Furniture & Soft Furnishings,210000
South Lakeland District Council,http://opendatacommunities.org/id/district-council/south-lakeland,30/04/2015,Coronation Hall,External Trading Accounts,,CUMBRIA WASTE RECYCLING LTD,3162439,42123,49085,435.51,0,"Emptying of skips from Market Hall,",Environmental Services,180000
South Lakeland District Council,http://opendatacommunities.org/id/district-council/south-lakeland,30/04/2015,Social Enterprise Admin,External Trading Accounts,,MASON OWEN PROPERTY CONSULTANTS,,42123,49086,10771.12,0,Balancing Servie Charge 25/12/2013 -,Vehicle Management,380000
South Lakeland District Council,http://opendatacommunities.org/id/district-council/south-lakeland,30/04/2015,ICT Group,Central Services,,PROBRAND LTD,2653446,42123,49091,193.88,0,TRE961/TPE-113GI  Trendnet-TPE-113GI,Information Communication Technology,270000
South Lakeland District Council,http://opendatacommunities.org/id/district-council/south-lakeland,30/04/2015,Social Enterprise Admin,Cultural Environmental Regulatory & Planning Services,,NEWSQUEST (NORTH WEST) LTD,3102566,42123,49094,149,0,PUBLIC NOTICES FOR PLANNING 1 APRIL - 31,Facilities & Management Services,190000
South Lakeland District Council,http://opendatacommunities.org/id/district-council/south-lakeland,30/04/2015,Social Enterprise Admin,Cultural Environmental Regulatory & Planning Services,,Matchtech,2526418,42123,49095,952.71,0,TO SUPPLY DEVELOPMENT CONTROL TEAM,Consultancy,150000
South Lakeland District Council,http://opendatacommunities.org/id/district-council/south-lakeland,30/04/2015,ICT Group,Central Services,,Insight Direct (Uk) Ltd,2579852,42123,49098,102.9,0,Iiyama ProLite B2280HS-1LED monitor -,Furniture & Soft Furnishings,210000
South Lakeland District Council,http://opendatacommunities.org/id/district-council/south-lakeland,30/04/2015,ICT Group,Central Services,,Insight Direct (Uk) Ltd,2579852,42123,49098,102.9,0,Iiyama ProLite B2280HS-1LED monitor -,Furniture & Soft Furnishings,210000
South Lakeland District Council,http://opendatacommunities.org/id/district-council/south-lakeland,30/04/2015,Business Support Community Services,Central Services,,RICARDO-AEA,8229264,42123,49099,1230,0,6 Seminar/webinar places and access to,Education,170000
South Lakeland District Council,http://opendatacommunities.org/id/district-council/south-lakeland,30/04/2015,Printing Section,Central Services,,Konica Minolta Bus Solutions (UK) Ltd,,42123,49104,4351.56,0,Lease for Konica Office Printers 1st,Stationery,340000
South Lakeland District Council,http://opendatacommunities.org/id/district-council/south-lakeland,30/04/2015,Policy & Partnerships,Cultural Environmental Regulatory & Planning Services,,GRANTS- MISCELLANEOUS,,42123,49106,250,0,Youth bowling project,Financial Services,200000
South Lakeland District Council,http://opendatacommunities.org/id/district-council/south-lakeland,30/04/2015,Printing Section,Central Services,,DIXON PRINTING CO LTD,,42123,49107,776,0,"15,000 sheets of Blue Perf Paper cut to",Stationery,340000
South Lakeland District Council,http://opendatacommunities.org/id/district-council/south-lakeland,30/04/2015,Business Support Community Services,Internal Trading Accounts,,VOLVO GROUP UK LTD,2190944,42123,49108,130.24,0,Covers,Vehicle Management,380000
South Lakeland District Council,http://opendatacommunities.org/id/district-council/south-lakeland,30/04/2015,Business Support Community Services,Internal Trading Accounts,,VOLVO GROUP UK LTD,2190944,42123,49109,55.77,0,Covers,Vehicle Management,380000
South Lakeland District Council,http://opendatacommunities.org/id/district-council/south-lakeland,30/04/2015,Business Support Community Services,Internal Trading Accounts,,VOLVO GROUP UK LTD,2190944,42123,49110,130.14,0,Covers,Vehicle Management,380000
South Lakeland District Council,http://opendatacommunities.org/id/district-council/south-lakeland,30/04/2015,Business Support Community Services,Internal Trading Accounts,,EK MOTOR FACTORS LTD,838524,42123,49111,12.68,0,Ball joint,Vehicle Management,380000
South Lakeland District Council,http://opendatacommunities.org/id/district-council/south-lakeland,30/04/2015,Business Support Community Services,Internal Trading Accounts,,DENNIS EAGLE LTD,3794455,42123,49112,78.64,0,Sensor,Vehicle Management,380000
South Lakeland District Council,http://opendatacommunities.org/id/district-council/south-lakeland,30/04/2015,Business Support Community Services,Internal Trading Accounts,,DENNIS EAGLE LTD,3794455,42123,49113,31.44,0,Sensor,Vehicle Management,380000
South Lakeland District Council,http://opendatacommunities.org/id/district-council/south-lakeland,30/04/2015,Business Support Community Services,Internal Trading Accounts,,DENNIS EAGLE LTD,3794455,42123,49114,124.56,0,Sensor,Vehicle Management,380000
South Lakeland District Council,http://opendatacommunities.org/id/district-council/south-lakeland,30/04/2015,Business Support Community Services,Internal Trading Accounts,,Masterstaff Limited,2777593,42123,49115,637.2,0,Agency staff - April 2015,Consultancy,150000
South Lakeland District Council,http://opendatacommunities.org/id/district-council/south-lakeland,30/04/2015,Business Support Community Services,Internal Trading Accounts,,BERENDSEN UK LTD,228604,42123,49116,225.47,0,Workwear hire 29/03/15 - 28/03/16,Clothing,140000
South Lakeland District Council,http://opendatacommunities.org/id/district-council/south-lakeland,30/04/2015,Business Support Community Services,Internal Trading Accounts,,DENNIS EAGLE LTD,3794455,42123,49117,108.94,0,Sensor,Vehicle Management,380000
South Lakeland District Council,http://opendatacommunities.org/id/district-council/south-lakeland,30/04/2015,Business Support Community Services,Internal Trading Accounts,,DENNIS EAGLE LTD,3794455,42123,49118,84.09,0,Sensor,Vehicle Management,380000
South Lakeland District Council,http://opendatacommunities.org/id/district-council/south-lakeland,30/04/2015,Business Support Community Services,Internal Trading Accounts,,DENNIS EAGLE LTD,3794455,42123,49119,145.01,0,Sensor,Vehicle Management,380000
South Lakeland District Council,http://opendatacommunities.org/id/district-council/south-lakeland,30/04/2015,Business Support Community Services,Internal Trading Accounts,,EK MOTOR FACTORS LTD,838524,42123,49120,73.92,0,Ball joint,Vehicle Management,380000
South Lakeland District Council,http://opendatacommunities.org/id/district-council/south-lakeland,30/04/2015,Business Support Community Services,Internal Trading Accounts,,EK MOTOR FACTORS LTD,838524,42123,49121,53.91,0,Ball joint,Cleaning & Janitorial,130000
South Lakeland District Council,http://opendatacommunities.org/id/district-council/south-lakeland,30/04/2015,Business Support Community Services,Internal Trading Accounts,,EK MOTOR FACTORS LTD,838524,42123,49123,6.32,0,Ball joint,Vehicle Management,380000
South Lakeland District Council,http://opendatacommunities.org/id/district-council/south-lakeland,30/04/2015,Business Support Community Services,Internal Trading Accounts,,EK MOTOR FACTORS LTD,838524,42123,49124,73.92,0,Ball joint,Vehicle Management,380000
South Lakeland District Council,http://opendatacommunities.org/id/district-council/south-lakeland,30/04/2015,Business Support Community Services,Internal Trading Accounts,,EK MOTOR FACTORS LTD,838524,42123,49125,35.81,0,Ball joint,Vehicle Management,380000
South Lakeland District Council,http://opendatacommunities.org/id/district-council/south-lakeland,30/04/2015,Business Support Community Services,Internal Trading Accounts,,CUMBRIA TRUCK CENTRE LTD,4298488,42123,49126,23.08,0,Casing,Vehicle Management,380000
South Lakeland District Council,http://opendatacommunities.org/id/district-council/south-lakeland,30/04/2015,Business Support Community Services,Internal Trading Accounts,,FUMEX LTD,5224923,42123,49127,95,0,Inspect exhaust system,Furniture & Soft Furnishings,210000
South Lakeland District Council,http://opendatacommunities.org/id/district-council/south-lakeland,30/04/2015,Business Support Community Services,Internal Trading Accounts,,DENNIS EAGLE LTD,3794455,42123,49129,115.09,0,Sensor,Vehicle Management,380000
South Lakeland District Council,http://opendatacommunities.org/id/district-council/south-lakeland,30/04/2015,Business Support Community Services,Internal Trading Accounts,,HYDRAIR TRUCK & TRAILER PARTS LTD,,42123,49132,45.56,0,Pads,Vehicle Management,380000
South Lakeland District Council,http://opendatacommunities.org/id/district-council/south-lakeland,30/04/2015,Business Support Community Services,Internal Trading Accounts,,HYDRAIR TRUCK & TRAILER PARTS LTD,,42123,49133,65.24,0,Pads,Vehicle Management,380000
South Lakeland District Council,http://opendatacommunities.org/id/district-council/south-lakeland,30/04/2015,Business Support Community Services,Internal Trading Accounts,,HYDRAIR TRUCK & TRAILER PARTS LTD,,42123,49134,138.16,0,Pads,Vehicle Management,380000
South Lakeland District Council,http://opendatacommunities.org/id/district-council/south-lakeland,30/04/2015,Business Support Community Services,Internal Trading Accounts,,DENNIS EAGLE LTD,3794455,42123,49137,118.09,0,Sensor,Vehicle Management,380000
South Lakeland District Council,http://opendatacommunities.org/id/district-council/south-lakeland,30/04/2015,Business Support Community Services,Internal Trading Accounts,,DENNIS EAGLE LTD,3794455,42123,49138,184.94,0,Sensor,Vehicle Management,380000
South Lakeland District Council,http://opendatacommunities.org/id/district-council/south-lakeland,30/04/2015,Business Support Community Services,Internal Trading Accounts,,HYDRAIR TRUCK & TRAILER PARTS LTD,,42123,49139,47.55,0,Pads,Vehicle Management,380000
South Lakeland District Council,http://opendatacommunities.org/id/district-council/south-lakeland,30/04/2015,Business Support Community Services,Internal Trading Accounts,,EK MOTOR FACTORS LTD,838524,42123,49140,28.52,0,Oil filters,Vehicle Management,380000
South Lakeland District Council,http://opendatacommunities.org/id/district-council/south-lakeland,30/04/2015,Business Support Community Services,Internal Trading Accounts,,EK MOTOR FACTORS LTD,838524,42123,49141,33.41,0,Oil filters,Vehicle Management,380000
South Lakeland District Council,http://opendatacommunities.org/id/district-council/south-lakeland,30/04/2015,Business Support Community Services,Internal Trading Accounts,,HYDRAIR TRUCK & TRAILER PARTS LTD,,42123,49142,122.5,0,Pads,Vehicle Management,380000
South Lakeland District Council,http://opendatacommunities.org/id/district-council/south-lakeland,30/04/2015,Business Support Community Services,Internal Trading Accounts,,LANCASTER TRAINING SERVICES LTD,1447612,42123,49146,572.5,0,Training 2015/16,Education,170000
South Lakeland District Council,http://opendatacommunities.org/id/district-council/south-lakeland,30/04/2015,Business Support Community Services,Cultural Environmental Regulatory & Planning Services,,GRANTS- MISCELLANEOUS,,42123,49149,3078,0,RRG 2014 - Flood safety measures at,Arts & Leisure Services,290000
South Lakeland District Council,http://opendatacommunities.org/id/district-council/south-lakeland,30/04/2015,Business Support Community Services,Housing Services,,Landlord,,42123,49150,500,0,Monthly rent ,Social Community Care Supplies & Services,410000
South Lakeland District Council,http://opendatacommunities.org/id/district-council/south-lakeland,30/04/2015,Business Support Community Services,Housing Services,,Landlord,,42123,49151,625,0,Monthly rent ,Social Community Care Supplies & Services,410000
South Lakeland District Council,http://opendatacommunities.org/id/district-council/south-lakeland,30/04/2015,Business Support Community Services,Housing Services,,Landlord,,42123,49152,600,0,Monthly rent ,Social Community Care Supplies & Services,410000
South Lakeland District Council,http://opendatacommunities.org/id/district-council/south-lakeland,30/04/2015,Business Support Community Services,Housing Services,,Landlord,,42123,49153,410,0,Monthly rent ,Social Community Care Supplies & Services,410000
South Lakeland District Council,http://opendatacommunities.org/id/district-council/south-lakeland,30/04/2015,Business Support Community Services,Housing Services,,Landlord,,42123,49154,500,0,Monthly rent ,Social Community Care Supplies & Services,410000
South Lakeland District Council,http://opendatacommunities.org/id/district-council/south-lakeland,30/04/2015,Business Support Community Services,Housing Services,,Landlord,,42123,49155,500,0,Monthly rent ,Social Community Care Supplies & Services,410000
South Lakeland District Council,http://opendatacommunities.org/id/district-council/south-lakeland,30/04/2015,Business Support Community Services,Housing Services,,Landlord,,42123,49156,625,0,Monthly rent ,Social Community Care Supplies & Services,410000
South Lakeland District Council,http://opendatacommunities.org/id/district-council/south-lakeland,30/04/2015,Business Support Community Services,Housing Services,,Landlord,,42123,49157,500,0,Monthly rent ,Social Community Care Supplies & Services,410000
South Lakeland District Council,http://opendatacommunities.org/id/district-council/south-lakeland,30/04/2015,Business Support Community Services,Housing Services,,Landlord,,42123,49158,475,0,Monthly rent ,Social Community Care Supplies & Services,410000
South Lakeland District Council,http://opendatacommunities.org/id/district-council/south-lakeland,30/04/2015,Business Support Community Services,Housing Services,,Landlord,,42123,49159,480,0,Monthly rent ,Social Community Care Supplies & Services,410000
South Lakeland District Council,http://opendatacommunities.org/id/district-council/south-lakeland,30/04/2015,Business Support Community Services,Housing Services,,Landlord,,42123,49160,400,0,Monthly rent ,Social Community Care Supplies & Services,410000
South Lakeland District Council,http://opendatacommunities.org/id/district-council/south-lakeland,30/04/2015,Business Support Community Services,Housing Services,,Landlord,7009105,42123,49161,480,0,Monthly rent ,Social Community Care Supplies & Services,410000
South Lakeland District Council,http://opendatacommunities.org/id/district-council/south-lakeland,30/04/2015,Business Support Community Services,Cultural Environmental Regulatory & Planning Services,,Alex Stefanovic,,42123,49162,1425,0,Completed and signed Third Award in the,Legal Services,280000
